{"text_format":"1","workbook":"xlsx","n_sheets":37,"sheets":["説明","調査報告書類","施工承認申請書類","支援事業認定申請書類","道路掘削申請書類","変更申請書類","完成検査書類","舗装検査書類","取下書類","①調査報告書","②位置図","③現地写真","④施工承認申請書","④’施工承認申請書 (副)","⑤委任状 ","⑥平面図・横断図","⑦写真","⑧支援事業認定申請書","⑨見積書","⑩掘削申請記入様式","⑩道路占用許可申請依頼書 ","⑩´公共下水道工事に関する承諾報告書","⑪引込工事調整結果報告書","⑫引込計画平面図","⑬変更申請","⑬’変更申請(副)","⑭支援事業認定変更申請書","⑮変更見積書","⑯検査願","⑯’検査願(副)","⑰資産表","⑱内訳書","⑲掘削工事検査願","(21)取下","→以降は令和４年度以前様式","請求書類","⑳請求書 "],"not_rendered":{"charts":0,"images":0,"macros":1,"external_links":0,"defined_names":33,"comments":2,"pivot_tables":0},"unopened":[],"bounds":{"document_bytes":16777216,"sheet_cells":100000,"rows_first":2000,"rows_last":500,"rows_between":2000,"halvings":0,"cell_chars":16384,"cell_head_chars":4096},"cells_cut":0,"cells_raw":0,"read":"whole","date_system":"1900"}

{"sheet":"説明","index":0,"n_rows":36,"n_cols":2,"rows_kept":36,"cut":false,"hidden":false,"merged":[[25,0,26,0],[25,1,26,7],[34,1,34,7],[35,1,35,7],[33,1,33,7],[32,1,32,7],[32,0,33,0],[31,1,31,7],[30,1,30,7],[29,1,29,7],[27,1,27,7],[27,0,30,0],[28,1,28,7]]}
["書類作成補助シート"]
["本ファイルは改善ラインで取り扱う申請に係る書類の作成を補助するためのものです。各申請段階で必要となる提出書類を作成可能です（一部、本ファイル外での作成・入手が必要な添付書類もあります）。"]
["本ファイルは「説明シート（本シート）」、「書類作成シート（書類毎）」、「様式シート（書類毎）」で構成されています。"]
["「書類作成シート」の入力欄に入力すると、入力情報が「様式シート」の様式に自動反映されます。同じ内容を入力する必要のある場所はあらかじめリンクされているので、何度も入力する必要がありません。"]
["なお、本ファイルを使用して書類作成しなければいけないわけではありません。"]
[]
["利用方法"]
["①申請段階ごとに必要な書類を以下の表で確認のうえ、作成したい書類名をクリックして「書類作成シート」を開いてください。"]
["②「書類作成シート」の入力欄に必要な情報を入力してください。"]
["③「書類作成シート」の冒頭には必要な添付書類が列挙されています。"]
["　・「様式シート」を用意している書類（書類名の横に「シート○」と記載されているもの）の作成"]
["　　「シート○」をクリックし、「様式シート」を開いて記載内容に誤りや漏れがないことを確認してください。"]
["　　記載内容を修正する場合は再度「書類作成シート」を開き入力してください。"]
["　　位置図や平面図・横断図、写真等の様式シートには、様式上の所定の位置に必要な画像等を貼り付け、必要に応じて情報を様式に直接入力してください。"]
["　・様式シートを用意していない添付書類の作成"]
["　　各添付資料を本ファイル外で別途作成若しくは入手してください。"]
[]
["注意事項"]
["・本ファイルを開いた際に、「セキュリティの警告マクロが無効にされました。」と表示されるので、「コンテンツの有効化」をクリックしてください。"]
["・改築工事の場合、支援事業認定申請の申請者を施工承認申請の受任者に設定しています。"]
["・市道掘削を伴う工事で、工事箇所が複数になる場合（同じ場所で新設と改築で申請が分かれている）は一つの道路掘削申請書類にまとめてください。"]
["・完成検査書類等のシートのセルに参照セルが入力されていますが、途中で一から新たに作成（完成検査書類から作成等）する場合は無視して入力してください。"]
[]
[]
[]
["申請\n段階","必要書類（文字をクリックすると該当の「書類作成シート」へリンクします）"]
[]
["新規","調査報告書類"]
[null,"施工承認申請書類"]
[null,"支援事業認定申請書類"]
[null,"道路掘削申請書類（市道・私道）"]
["変更","変更申請書類"]
["完成","完成検査書類"]
[null,"道路掘削跡復旧工事検査書類"]
["請求","給付金請求書類"]
["取下","承認申請取下げ書類"]

{"sheet":"調査報告書類","index":1,"n_rows":53,"n_cols":19,"rows_kept":53,"cut":false,"hidden":false,"merged":[[21,5,21,18],[10,0,15,0],[9,2,9,18],[10,2,10,18],[11,2,11,18],[12,2,12,18],[13,2,13,18],[14,2,14,18],[15,2,15,18],[24,16,24,18],[31,7,31,18],[16,2,16,3],[17,2,17,3],[30,3,30,9],[31,3,31,5],[29,3,29,5],[29,7,29,9],[29,11,29,13],[26,13,26,18],[27,2,27,5],[27,6,27,18],[28,13,28,18],[16,4,16,18],[17,4,17,18],[20,5,20,18],[25,1,26,1],[23,0,26,0],[27,0,30,0],[16,0,22,0],[29,15,29,18],[16,1,17,1],[30,11,30,18],[22,2,22,18],[27,1,28,1],[19,2,19,18],[23,1,24,1],[23,2,23,5],[23,6,23,18],[25,2,25,5],[25,6,25,18],[24,14,24,15]]}
["調査報告書類作成シート"]
["シート入力後、以下の書類を提出してください"]
["・","調査報告書",null,null,null,"シート①"]
["・","位置図",null,null,null,"シート②","様式シートに画像データを貼り付け"]
["・","公共下水道台帳施設平面図（本管・取付管説明図各１枚）",null,null,null,"別途作成（台帳上に記入）"]
["・","建築計画平面図",null,null,null,"別途添付"]
["・","現地写真",null,null,null,"シート③","様式シートに画像データを貼り付け"]
[]
[null,"白色部分に入力してください。入力欄が□の場合、該当する時は■を選択してください。"]
[null,"提出日（和暦）"]
["調査業者","調査業者名"]
[null,"指定番号"]
[null,"電話番号"]
[null,"FAX番号"]
[null,"調査担当者"]
[null,"携帯番号"]
[null,"建築予定住所","区（選択）",null,"区以降（入力）"]
[]
[null,null,"□","神戸市道","□","私道","□","一般国道","□","港湾道路","□","区画整理","□","河川敷","□","宅内","その他"]
[null,"住宅地図番号（例：p.25 G-4）"]
[null,"同時引き込み予定","□","水道","□","ガス"]
[null,"宅地割の予定","□","有","□","無"]
[null,"建築予定時期（和暦・月まで）"]
["台帳図情報","本管","管径",null,null,null,"管種"]
[null,null,"Φ",null,"mm",null,"□","ＨＰ","□","K1(VP)","□","KHP","□","その他",null,null,"←その他の場合記入"]
[null,"取付管","管径",null,null,null,"管種"]
[null,null,"Φ",null,"mm",null,"□","ＨＰ","□","K1(VP)","□","KHP","□","無"]
["現地調査情報","取付管","管径",null,null,null,"管種"]
[null,null,"Φ",null,"mm",null,"□","ＨＰ","□","K1(VP)","□","KHP","□","無"]
[null,"接続ます","□","Φ350コンクリートます",null,null,"□","小口径塩ビます",null,null,"□","コンクリートます・蓋なし",null,null,"□","コンクリートますなし"]
[null,"使用状況","□","別からの排水設備の流入なし",null,null,null,null,null,null,"□","別からの排水設備流入の疑いあり（通称：共排）"]
[null,"使用予定の有無","□","使用する",null,null,"□","使用しない（撤去）"]
[]
[]
[]
[]
[]
[]
[]
[]
[null,null,null,null,null,null,null,null,null,null,null,null,null,null,null,null,null,null,"東灘区"]
[null,null,null,null,null,null,null,null,null,null,null,null,null,null,null,null,null,null,"灘区"]
[null,null,null,null,null,null,null,null,null,null,null,null,null,null,null,null,null,null,"中央区"]
[null,null,null,null,null,null,null,null,null,null,null,null,null,null,null,null,null,null,"兵庫区"]
[null,null,null,null,null,null,null,null,null,null,null,null,null,null,null,null,null,null,"長田区"]
[null,null,null,null,null,null,null,null,null,null,null,null,null,null,null,null,null,null,"須磨区"]
[null,null,null,null,null,null,null,null,null,null,null,null,null,null,null,null,null,null,"垂水区"]
[null,null,null,null,null,null,null,null,null,null,null,null,null,null,null,null,null,null,"西区"]
[null,null,null,null,null,null,null,null,null,null,null,null,null,null,null,null,null,null,"北区"]
[]
[]
[null,null,null,null,null,null,null,null,null,null,null,null,null,null,null,null,null,null,"□"]
[null,null,null,null,null,null,null,null,null,null,null,null,null,null,null,null,null,null,"■"]

{"sheet":"施工承認申請書類","index":2,"n_rows":70,"n_cols":20,"rows_kept":70,"cut":false,"hidden":false,"merged":[[16,0,19,0],[16,2,16,18],[21,1,22,1],[24,0,30,0],[11,5,11,9],[30,2,30,18],[26,2,26,18],[20,2,20,3],[20,11,20,18],[21,4,21,18],[22,4,22,18],[23,2,23,18],[24,2,24,18],[25,2,25,18],[27,2,27,18],[28,2,28,18],[47,1,49,1],[47,3,47,18],[48,3,48,18],[49,3,49,18],[42,2,42,3],[42,4,42,9],[42,10,42,11],[42,12,42,18],[45,1,46,1],[45,7,45,9],[45,13,45,18],[46,3,46,9],[46,11,46,18],[44,14,44,18],[31,0,36,0],[31,2,31,18],[32,2,32,18],[33,2,33,18],[34,2,34,18],[35,2,35,18],[36,2,36,18],[37,0,41,0],[37,2,37,18],[38,2,38,18],[39,2,39,18],[40,2,40,18],[41,2,41,18],[29,2,29,18],[21,2,21,3],[22,2,22,3],[14,2,14,18],[15,2,15,18],[17,2,17,18],[18,2,18,18],[19,2,19,18]]}
["施工承認申請書類作成シート"]
["シート入力後、以下の書類を提出してください"]
["・","取付管・接続ます（新設・改築）工事施工承認申請書（正・副）",null,null,null,"シート④",null,"シート④’"]
["・","委任状",null,null,null,"シート⑤"]
["・","位置図",null,null,null,"シート②","様式シートに画像データを貼り付け"]
["・","平面図・横断図",null,null,null,"シート⑥","または、平面図・横断図作成補助シートより作成"]
["・","公共下水道台帳施設平面図（本管・取付管説明図各1枚）",null,null,null,"別途作成（台帳上に記入）"]
["・","工事箇所現況写真（遠景・近景）",null,null,null,"シート⑦","様式シートに画像データを貼り付け"]
["・","開発事前審査申出書に関する意見について（回答）",null,null,null,"別途添付（開発の場合）"]
["・","開発に関する計画課からの意見書",null,null,null,"別途添付（開発の場合）"]
["・","汚水管布設平面図・使用材料図面（写）",null,null,null,"別途添付（開発の場合）"]
["・","道路掘削申請関係書類【市道・私道の場合】",null,null,null,"道路掘削申請書類シートで作成し添付"]
[]
[null,"白色部分に入力してください。入力欄が□の場合、該当する時は■を選択してください。"]
[null,"工事内容（選択）"]
[null,"提出日（和暦）"]
["申請者","郵便番号"]
[null,"住所"]
[null,"氏名"]
[null,"電話番号"]
[null,"工事箇所数（該当する工事内容の右に数値を記入）","新設",null,null,"撤去",null,"入替",null,"ますのみ",null,"（単位：箇所）"]
[null,"接続ます設置場所","区（選択）",null,"区以降（入力）"]
[]
[null,"住宅地図番号（例：p.25 G-4）"]
["受任者","指定番号"]
[null,"受任者名"]
[null,"代表者名"]
[null,"住所"]
[null,"電話番号"]
[null,"責任技術者名"]
[null,"携帯電話番号"]
["管工事業者","指定番号"]
[null,"施工業者名"]
[null,"住所（市道の場合入力）"]
[null,"電話番号"]
[null,"現場責任者名"]
[null,"携帯電話番号"]
["舗装工事業者","施工業者名"]
[null,"住所（市道の場合入力）"]
[null,"電話番号"]
[null,"現場責任者名"]
[null,"携帯電話番号"]
[null,"工事期間（和暦）","開始日",null,null,null,null,null,null,null,"終了日"]
[null,"占用","□","市道","□","私道","□","国道","□","港湾","□","区画整理","□","河川敷","□","宅内","□","その他",null,"←その他の場合記入"]
[null,"他工事","□","水道","□","ガス","□","道路法24条","□","開発行為","□","共排分離","□","その他",null,null,null,null,null,"←その他の場合記入"]
[null,"添付書類（添付するものにチェック）","□","委任状","□","位置図","□","平面図・横断図",null,null,"□","写真","□","下水道台帳（本管・取付管説明図各1枚）"]
[null,null,"□","道路占用許可申請関係書類【公道部】",null,null,null,null,null,null,"□","公共下水道工事に関する承諾報告書【私道部】"]
[null,"委任内容（いずれかにチェック）","□","公共下水道　新設・移設・撤去およびマンホール蓋高調整工事に関する一切の権限"]
[null,null,"□","取付管・接続ま承認工事及び給付金の申請手続きに関する一切の権限"]
[null,null,"□","取付管・接続ま承認工事及の申請手続きに関する一切の権限"]
[]
[]
[]
[]
[]
[null,null,null,null,null,null,null,null,null,null,null,null,null,null,null,null,null,null,"東灘区"]
[null,null,null,null,null,null,null,null,null,null,null,null,null,null,null,null,null,null,"灘区"]
[null,null,null,null,null,null,null,null,null,null,null,null,null,null,null,null,null,null,"中央区"]
[null,null,null,null,null,null,null,null,null,null,null,null,null,null,null,null,null,null,"兵庫区"]
[null,null,null,null,null,null,null,null,null,null,null,null,null,null,null,null,null,null,"長田区"]
[null,null,null,null,null,null,null,null,null,null,null,null,null,null,null,null,null,null,"須磨区"]
[null,null,null,null,null,null,null,null,null,null,null,null,null,null,null,null,null,null,"垂水区"]
[null,null,null,null,null,null,null,null,null,null,null,null,null,null,null,null,null,null,"西区"]
[null,null,null,null,null,null,null,null,null,null,null,null,null,null,null,null,null,null,"北区"]
[]
[null,null,null,null,null,null,null,null,null,null,null,null,null,null,null,null,null,null,"□"]
[null,null,null,null,null,null,null,null,null,null,null,null,null,null,null,null,null,null,"■"]
[]
[null,null,null,null,null,null,null,null,null,null,null,null,null,null,null,null,null,null,"新 設"]
[null,null,null,null,null,null,null,null,null,null,null,null,null,null,null,null,null,null,"改 築"]

{"sheet":"支援事業認定申請書類","index":3,"n_rows":30,"n_cols":21,"rows_kept":30,"cut":false,"hidden":false,"merged":[[28,2,28,18],[29,2,29,18],[22,2,22,18],[23,2,23,18],[14,0,23,0],[26,2,26,18],[27,2,27,18],[20,2,20,18],[21,2,21,3],[21,4,21,5],[21,6,21,7],[21,8,21,9],[21,10,21,11],[21,12,21,13],[21,14,21,15],[14,2,14,18],[18,2,18,3],[18,4,18,5],[18,6,18,7],[19,2,19,18],[7,2,7,3],[7,4,7,18],[15,2,15,18],[16,2,16,18],[17,2,17,3],[17,4,17,5],[17,6,17,7],[17,8,17,9],[8,0,12,0],[11,2,11,18],[12,2,12,18],[8,2,8,18],[9,2,9,18],[10,2,10,18]]}
["支援事業認定申請書類作成シート"]
["シート入力後、以下の書類を提出してください"]
["・","支援事業認定申請書",null,null,null,"シート⑧"]
["・","見積書",null,null,null,"シート⑨"]
["・","指定工事店証のコピー",null,null,null,"別途添付"]
[]
[null,"白色部分に入力してください。入力欄が□の場合、該当する時は■を選択してください。"]
[null,"調査番号（調査報告書提出済の場合記入）",{"$f":"施工承認申請書類!C23","v":"00:00:00"}]
["見積","ます・取付管改築工事費"]
[null,"舗装復旧費"]
[null,"計",{"$f":"C9+C10","v":0}]
[null,"消費税",{"$f":"C11*0.1","v":0}]
[null,"合計",{"$f":"C11+C12","v":0}]
[]
["給付金入金口座情報","銀行名"]
[null,"金庫名"]
[null,"支店名"]
[null,"金融機関コード"]
[null,"支店コード"]
[null,"預金種目（リストより選択）",null,null,null,null,null,null,null,null,null,null,null,null,null,null,null,null,null,null,"1　普通"]
[null,"預金種目　その他の場合記入",null,null,null,null,null,null,null,null,null,null,null,null,null,null,null,null,null,null,"2　当座"]
[null,"口座番号",null,null,null,null,null,null,null,null,null,null,null,null,null,null,null,null,null,null,"3　その他"]
[null,"口座名義"]
[null,"口座名義（フリガナ）"]
[]
["給付金の受領を委任する場合は、以下にも入力"]
[null,"受任者　住所"]
[null,"受任者　氏名"]
[null,"委任者　住所"]
[null,"委任者　氏名"]

{"sheet":"道路掘削申請書類","index":4,"n_rows":78,"n_cols":19,"rows_kept":78,"cut":false,"hidden":false,"merged":[[21,2,21,18],[30,18,32,18],[31,11,31,13],[32,11,32,13],[42,2,42,5],[43,2,43,5],[43,6,43,18],[33,4,35,4],[30,5,32,5],[40,11,40,18],[41,3,41,5],[30,4,32,4],[30,7,32,7],[33,7,35,7],[33,18,35,18],[34,11,34,13],[35,11,35,13],[17,2,17,18],[18,2,18,18],[17,0,19,0],[41,11,41,13],[41,16,41,17],[36,7,36,15],[36,16,36,18],[36,5,36,6],[37,1,38,1],[37,2,37,5],[38,2,38,5],[37,6,37,18],[38,6,38,18],[20,2,20,18],[25,0,43,0],[19,2,19,18],[25,1,26,1],[25,2,25,13],[25,14,26,15],[25,16,25,18],[23,5,23,18],[23,2,23,4],[26,2,26,3],[26,4,26,10],[26,11,26,13],[24,0,24,1],[22,2,22,5],[22,6,22,18],[27,11,27,13],[27,16,29,17],[27,18,29,18],[28,11,28,13],[29,11,29,13],[27,14,29,15],[27,5,29,5],[27,4,29,4],[27,6,29,6],[27,8,29,8],[27,9,29,9],[27,7,29,7],[33,1,35,1],[33,11,33,13],[33,14,35,15],[33,16,35,17],[27,1,29,1],[27,10,29,10],[30,11,30,13],[30,14,32,15],[30,16,32,17],[30,1,32,1],[45,0,46,0],[47,0,48,0],[30,10,32,10],[33,10,35,10],[30,8,32,8],[33,8,35,8],[30,9,32,9],[33,9,35,9],[33,5,35,5],[30,6,32,6],[33,6,35,6],[42,6,42,18],[39,2,39,18],[40,1,43,1],[40,3,40,5],[40,7,40,9],[49,2,49,18],[45,2,45,18],[46,2,46,18],[47,2,47,18],[48,2,48,18]]}
["道路掘削申請書類作成シート"]
["シート入力後、以下の書類を提出してください"]
["【市道の場合】"]
["・","道路占用許可申請依頼書",null,null,null,"シート⑩"]
["・","位置図",null,null,null,"シート②","様式シートに画像データを貼り付け"]
["・","平面図・横断図",null,null,null,"シート⑥","または、平面図・横断図作成補助シートより作成"]
["・","引込工事調整結果報告書",null,null,null,"シート⑪"]
["・","引込計画平面図",null,null,null,"シート⑫","様式シートに画像データを貼り付け"]
["・","工事箇所現況写真（遠景・近景）",null,null,null,"シート⑦","様式シートに画像データを貼り付け"]
["・","作業方法形態図（交通規制図）",null,null,null,"別途作成"]
["【私道の場合】"]
["・","公共下水道工事に関する承諾報告書",null,null,null,"シート⑩´"]
["・","引込工事調整結果報告書",null,null,null,"シート⑪"]
["・","引込計画平面図",null,null,null,"シート⑫","様式シートに画像データを貼り付け"]
["・","作業方法形態図（交通規制図）",null,null,null,"別途作成"]
[]
["【市道の場合】　白色部分に入力してください。入力欄が□の場合、該当する時は■を選択してください。"]
["作成者","事業者名"]
[null,"氏名"]
[null,"電話番号"]
[null,"許可証送付用ＦＡＸ番号"]
[null,"許可証送付用Eメールアドレス"]
[null,"所管建設事務所（選択）"]
[null,"所管警察署（選択）"]
["【市道・私道の場合】"]
["引込工事調整結果",null,"工事内容",null,null,null,null,null,null,null,null,null,null,null,"施工者名",null,"連絡先"]
[null,null,"工事位置",null,"管径・工事内容・延長",null,null,null,null,null,null,"工期（和暦）",null,null,null,null,"氏名",null,"電話番号"]
[null,"水道","□","歩道","Φ",null,"mm",null,"L=",null,"m"]
[null,null,"□","車道",null,null,null,null,null,null,null,"～"]
[null,null,"□","歩車道"]
[null,"下水","□","歩道","Φ",null,"mm",null,"L=",null,"m",{"$f":"施工承認申請書類!E43","v":"00:00:00"},null,null,{"$f":"施工承認申請書類!C33","v":0},null,{"$f":"施工承認申請書類!C36","v":0},null,{"$f":"施工承認申請書類!C37","v":0}]
[null,null,"□","車道",null,null,null,null,null,null,null,"～"]
[null,null,"□","歩車道",null,null,null,null,null,null,null,{"$f":"施工承認申請書類!M43","v":"00:00:00"}]
[null,"ガス","□","歩道","Φ",null,"mm",null,"L=",null,"m"]
[null,null,"□","車道",null,null,null,null,null,null,null,"～"]
[null,null,"□","歩車道"]
[null,"工事手待ちの有無","□","無","□","有　　　　　　（",null,null,null,null,null,null,null,null,null,null,"）←有の場合の理由"]
[null,"全体工事の調整事業者名","業者名"]
[null,null,"担当者名"]
[null,"（電話番号）"]
[null,"舗装復旧事業者","□","単独",null,null,"□","事前協議済",null,null,"□","協議の上復旧業者決定"]
[null,null,"□","水道局",null,null,"□","下水道部管路課",null,null,"□","大阪ガス",null,null,"□","その他",null,null,"←その他の場合記入"]
[null,null,"業者名",null,null,null,{"$f":"施工承認申請書類!C38","v":0}]
[null,null,"担当者名",null,null,null,{"$f":"施工承認申請書類!C41","v":0}]
["【私道の場合】"]
["報告者","事業者名"]
[null,"氏名"]
["承諾者","承諾者（土地所有者）の住所"]
[null,"承諾者（土地所有者）の氏名"]
[null,"土地所有者の承諾を得た日"]
[]
[]
[]
[]
[null,null,null,null,null,null,null,null,null,null,null,null,null,null,null,null,null,"東部建設事務所","東灘署"]
[null,null,null,null,null,null,null,null,null,null,null,null,null,null,null,null,null,"中部建設事務所","灘署"]
[null,null,null,null,null,null,null,null,null,null,null,null,null,null,null,null,null,"垂水建設事務所","葺合署"]
[null,null,null,null,null,null,null,null,null,null,null,null,null,null,null,null,null,"北建設事務所","生田署"]
[null,null,null,null,null,null,null,null,null,null,null,null,null,null,null,null,null,"西建設事務所","神戸水上署"]
[null,null,null,null,null,null,null,null,null,null,null,null,null,null,null,null,null,"西部建設事務所","兵庫署"]
[null,null,null,null,null,null,null,null,null,null,null,null,null,null,null,null,null,null,"長田署"]
[null,null,null,null,null,null,null,null,null,null,null,null,null,null,null,null,null,null,"須磨署"]
[null,null,null,null,null,null,null,null,null,null,null,null,null,null,null,null,null,null,"神戸西署"]
[null,null,null,null,null,null,null,null,null,null,null,null,null,null,null,null,null,null,"神戸北署"]
[]
[]
[]
[null,null,null,null,null,null,null,null,null,null,null,null,null,null,null,null,null,"□"]
[null,null,null,null,null,null,null,null,null,null,null,null,null,null,null,null,null,"■"]
[]
[]
[null,null,null,null,null,null,null,null,null,null,null,null,null,null,null,null,null,"新設"]
[null,null,null,null,null,null,null,null,null,null,null,null,null,null,null,null,null,"撤去"]
[null,null,null,null,null,null,null,null,null,null,null,null,null,null,null,null,null,"入替"]
[null,null,null,null,null,null,null,null,null,null,null,null,null,null,null,null,null,"新設・撤去"]
[null,null,null,null,null,null,null,null,null,null,null,null,null,null,null,null,null,"新設・入替"]
[null,null,null,null,null,null,null,null,null,null,null,null,null,null,null,null,null,"撤去・入替"]
[null,null,null,null,null,null,null,null,null,null,null,null,null,null,null,null,null,"新設・撤去・入替"]

{"sheet":"変更申請書類","index":5,"n_rows":70,"n_cols":21,"rows_kept":70,"cut":false,"hidden":false,"merged":[[45,1,46,1],[45,2,45,3],[45,4,45,18],[46,2,46,3],[46,4,46,18],[22,0,31,0],[38,0,52,0],[54,0,69,0],[63,2,63,18],[66,2,66,18],[67,2,67,18],[68,2,68,18],[69,2,69,18],[61,8,61,9],[61,10,61,11],[61,12,61,13],[61,14,61,15],[62,2,62,18],[54,2,54,18],[55,2,55,18],[56,2,56,18],[57,2,57,3],[57,4,57,5],[57,6,57,7],[57,8,57,9],[58,2,58,3],[58,4,58,5],[58,6,58,7],[59,2,59,18],[60,2,60,18],[61,2,61,3],[61,4,61,5],[61,6,61,7],[38,2,38,18],[41,1,44,1],[44,3,44,18],[50,1,52,1],[41,3,41,18],[42,3,42,18],[43,3,43,18],[50,3,50,18],[51,3,51,18],[52,3,52,18],[40,2,40,3],[40,4,40,18],[47,1,49,1],[47,2,49,18],[39,2,39,3],[39,6,39,18],[23,2,23,3],[23,4,23,18],[37,2,37,18],[32,0,37,0],[25,1,26,1],[27,1,29,1],[33,2,33,18],[34,2,34,18],[35,2,35,18],[36,2,36,18],[32,2,32,18],[30,7,30,9],[30,13,30,18],[31,3,31,9],[31,11,31,18],[24,2,24,18],[27,2,29,18],[25,2,25,3],[26,2,26,3],[25,4,25,18],[26,4,26,18],[9,0,11,0],[9,2,9,18],[22,4,22,7],[22,8,22,9],[22,12,22,18],[14,2,14,18],[10,2,10,18],[11,2,11,18],[12,1,13,1],[12,2,12,3],[12,4,12,18],[13,2,13,3],[13,4,13,18],[15,0,21,0],[15,2,15,18],[16,2,16,18],[7,2,7,18],[8,2,8,18],[22,2,22,3],[22,10,22,11],[17,2,17,18],[18,2,18,18],[19,2,19,18],[20,2,20,18],[21,2,21,18]]}
["変更申請書類作成シート"]
["シート入力後、以下の書類を提出してください",null,null,null,null,null,null,null,null,null,null,null,null,null,null,null,null,null,null,null,"東灘区"]
["・","取付管・接続ます（新設・改築）工事施工承認申請書（変更）（正・副）",null,null,null,"シート⑬",null,"シート⑬’",null,null,null,null,null,null,null,null,null,null,null,null,"灘区"]
["・","当初の申請から変更となったものを添付",null,null,null,"各シート出力または別途添付",null,null,null,null,null,null,null,null,null,null,null,null,null,null,"中央区"]
["・","支援事業認定変更申請書",null,null,null,"シート⑭",null,null,null,null,null,null,null,null,null,null,null,null,null,null,"兵庫区"]
["・","変更見積書（改築の場合）",null,null,null,"シート⑮",null,null,null,null,null,null,null,null,null,null,null,null,null,null,"長田区"]
[null,"白色部分に入力してください。入力欄が□の場合、該当する時は■を選択してください。",null,null,null,null,null,null,null,null,null,null,null,null,null,null,null,null,null,null,"須磨区"]
[null,"工事内容（選択）",{"$f":"施工承認申請書類!C15","v":"00:00:00"},null,null,null,null,null,null,null,null,null,null,null,null,null,null,null,null,null,"垂水区"]
[null,"提出日（和暦）",null,null,null,null,null,null,null,null,null,null,null,null,null,null,null,null,null,null,"西区"]
["申請者","郵便番号",{"$f":"施工承認申請書類!C17","v":0}]
[null,"住所",{"$f":"施工承認申請書類!C18","v":0},null,null,null,null,null,null,null,null,null,null,null,null,null,null,null,null,null,"北区"]
[null,"氏名",{"$f":"施工承認申請書類!C19","v":0}]
[null,"接続ます設置場所","区（選択）",null,"区以降（入力）",null,null,null,null,null,null,null,null,null,null,null,null,null,null,null,"□"]
[null,null,null,null,{"$f":"施工承認申請書類!E23","v":0},null,null,null,null,null,null,null,null,null,null,null,null,null,null,null,"■"]
[null,"住宅地図番号",{"$f":"施工承認申請書類!C24","v":0}]
["受任者","指定番号",{"$f":"施工承認申請書類!C25","v":0},null,null,null,null,null,null,null,null,null,null,null,null,null,null,null,null,null,"新 設"]
[null,"受任者名",{"$f":"施工承認申請書類!C26","v":0},null,null,null,null,null,null,null,null,null,null,null,null,null,null,null,null,null,"改 築"]
[null,"代表者",{"$f":"施工承認申請書類!C27","v":0}]
[null,"住所（改築時）",{"$f":"施工承認申請書類!C28","v":0},null,null,null,null,null,null,null,null,null,null,null,null,null,null,null,null,null,"1　普通"]
[null,"電話番号",{"$f":"施工承認申請書類!C29","v":0},null,null,null,null,null,null,null,null,null,null,null,null,null,null,null,null,null,"2　当座"]
[null,"責任技術者名",{"$f":"施工承認申請書類!C30","v":0},null,null,null,null,null,null,null,null,null,null,null,null,null,null,null,null,null,"3　その他"]
[null,"携帯電話番号",{"$f":"施工承認申請書類!C31","v":0}]
["変更申請（変更事項）","承認番号","承認日",null,null,null,null,null,"神建下管",null,null,null,"号"]
[null,"管理番号",{"$f":"C14","v":0}]
[null,"変更事項"]
[null,"変更内容","変更前"]
[null,null,"変更後"]
[null,"変更理由"]
[]
[]
[null,"添付資料（変更分のみ）","□","委任状","□","位置図","□","平面図・横断図",null,null,"□","写真","□","下水道台帳（本管・取付管説明図各1枚）"]
[null,null,"□","道路占用許可申請関係書類【公道部】",null,null,null,null,null,null,"□","公共下水道工事に関する承諾報告書【私道部】"]
["変更見積（改築時）","調査番号（調査報告書提出済の場合記入）"]
[null,"ます・取付管改築工事費"]
[null,"舗装復旧費"]
[null,"計",{"$f":"C34+C35","v":0}]
[null,"消費税",{"$f":"C36*0.1","v":0}]
[null,"合計",{"$f":"C36+C37","v":0}]
["支援事業認定変更","支援事業交付予定額通知書　発行日　"]
[null,"支援事業交付予定額通知書　番号　　第〇〇〇〇号",null,null,"－"]
[null,"管理番号",{"$f":"C24","v":0},null,{"$f":"E24","v":0}]
[null,"変更事項　チェック\nその他の場合（）にも記入","□","給付金の振込先口座の変更"]
[null,null,"□","承認工事の内容変更に伴う見積金額の変更"]
[null,null,"□","住所変更、社名変更"]
[null,null,"□","その他（　　　　　　　　　　　　　　　　　　）"]
[null,"変更内容","変更前"]
[null,null,"変更後"]
[null,"変更理由"]
[]
[]
[null,"支援事業交付予定額通知書の添付書類\nその他の場合（）にも記入","□","変更見積書"]
[null,null,"□","指定工事店証"]
[null,null,"□","その他（　　　　　　　　　　）"]
["以下は給付金振込口座に変更がある場合のみ記入"]
["給付金入金口座情報","銀行名"]
[null,"金庫名"]
[null,"支店名"]
[null,"金融機関コード"]
[null,"支店コード"]
[null,"預金種目（リストより選択）"]
[null,"預金種目　その他の場合記入"]
[null,"口座番号"]
[null,"口座名義"]
[null,"口座名義（フリガナ）"]
[]
[null,"給付金の受領を委任する場合のみ以下にも入力"]
[null,"受任者　住所"]
[null,"受任者　氏名"]
[null,"委任者　住所"]
[null,"委任者　氏名"]

{"sheet":"完成検査書類","index":6,"n_rows":61,"n_cols":19,"rows_kept":61,"cut":false,"hidden":false,"merged":[[42,2,42,7],[42,8,42,12],[42,13,42,18],[29,1,33,1],[31,12,31,18],[30,6,30,7],[30,8,30,9],[30,10,30,11],[30,12,30,18],[29,4,29,5],[29,6,29,7],[29,8,29,9],[29,10,29,11],[31,4,31,5],[32,4,32,5],[32,6,32,7],[44,2,44,18],[36,0,44,0],[29,0,35,0],[36,2,36,18],[37,2,37,18],[35,2,35,6],[35,7,35,18],[39,2,39,18],[40,2,40,18],[41,2,41,18],[43,2,43,18],[31,6,31,7],[31,8,31,9],[31,10,31,11],[29,12,29,18],[30,4,30,5],[26,1,28,1],[28,11,28,18],[26,3,26,11],[27,3,27,7],[27,11,27,18],[28,3,28,9],[21,4,21,18],[22,2,22,18],[23,0,25,0],[23,2,23,18],[24,2,24,18],[25,2,25,18],[20,1,21,1],[20,2,20,3],[20,4,20,18],[21,2,21,3],[14,2,14,18],[15,2,15,18],[16,0,18,0],[16,2,16,18],[17,2,17,18],[18,2,18,5],[18,6,18,9],[18,10,18,18],[19,2,19,3],[19,10,19,11],[19,4,19,7],[19,8,19,9],[19,12,19,18],[32,8,32,9],[32,10,32,11],[32,12,32,18],[38,2,38,18],[34,12,34,13],[33,4,33,5],[33,6,33,7],[33,8,33,9],[33,10,33,11],[33,12,33,18],[34,8,34,9],[34,2,34,3]]}
["完成検査書類作成シート"]
["シート入力後、以下の書類を提出してください"]
["・","取付管・接続ます（新設・改築）工事完成検査願（正・副）",null,null,null,"シート⑯",null,"シート⑯’"]
["・","取付管・接続ますの（新築・改築）工事施工承認通知書の写し",null,null,null,"別途添付"]
["・","位置図",null,null,null,"シート②","様式シートに画像データを貼り付け"]
["・","台帳修正用図面",null,null,null,"別途作成"]
["・","施工通知回答書の写し",null,null,null,"別途添付"]
["・","立会・協議確認書の写し",null,null,null,"別途添付"]
["・","工事写真（管工事・舗装）",null,null,null,"別途添付"]
["・","道路掘削跡舗装復旧検査願書類【市道の場合】",null,null,null,"舗装検査書類シートで作成し、添付"]
["・","取付管・接続ますの資産表（新設の場合）",null,null,null,"シート⑰"]
["・","工事内訳書（改築の場合）",null,null,null,"シート⑱"]
[]
[null,"白色部分に入力してください。入力欄が□の場合、該当する時は■を選択してください。"]
[null,"工事内容（選択）",{"$f":"施工承認申請書類!C15","v":"00:00:00"}]
[null,"提出日（和暦）"]
["申請者","住所",{"$f":"施工承認申請書類!C18","v":0}]
[null,"氏名",{"$f":"施工承認申請書類!C19","v":0}]
[null,"電話番号",{"$f":"施工承認申請書類!C20","v":0},null,null,null,"インボイス登録番号"]
[null,"承認番号","承認日",null,null,null,null,null,"神建下管",null,null,null,"号"]
[null,"施工場所","区（選択）",null,"区以降（入力）"]
[null,null,{"$f":"施工承認申請書類!C23","v":0},null,{"$f":"施工承認申請書類!E23","v":0}]
[null,"住宅地図番号",{"$f":"施工承認申請書類!C24","v":0}]
[null,"受任者名",{"$f":"施工承認申請書類!C26","v":0}]
[null,"管工事業者名",{"$f":"施工承認申請書類!C33","v":0}]
[null,"舗装工事施工業者名"]
[null,"添付書類（添付するものにチェック）","□","取付管・接続ます（新設・改築）工事施工承認通知書の写し",null,null,null,null,null,null,null,null,"□","位置図","□","台帳修正用図面（下水道台帳上に記入）"]
[null,null,"□","施工通知書の回答の写し",null,null,null,null,"□","工事写真","□","道路掘削跡舗装復旧検査願書類一式（公道掘削を伴う場合）"]
[null,null,"□","取付管・接続ますの資産表（新設の場合）",null,null,null,null,null,null,"□","工事内訳書（改築の場合）"]
["新設の場合","新設取付管内訳",1,"管径",null,null,"ｍｍ",null,"延長",null,null,null,"ｍ"]
[null,null,2,"管径",null,null,"ｍｍ",null,"延長",null,null,null,"ｍ"]
[null,null,3,"管径",null,null,"ｍｍ",null,"延長",null,null,null,"ｍ"]
[null,null,4,"管径",null,null,"ｍｍ",null,"延長",null,null,null,"ｍ"]
[null,null,5,"管径",null,null,"ｍｍ",null,"延長",null,null,null,"ｍ"]
[null,"新設接続ます個数（単位：個）","宅地ます",null,1,"公道ます",null,"その他",null,null,null,"その他"]
[null,"概算工事費（舗装費含む）",null,null,null,null,null,"円（千円以下は切捨てで丸める）"]
["改築の場合","支援事業認定申請者住所",{"$f":"施工承認申請書類!C28","v":0}]
[null,"支援事業認定申請者氏名",{"$f":"施工承認申請書類!C26","v":0}]
[null,"支援事業認定申請者代表者氏名",{"$f":"施工承認申請書類!C27","v":0}]
[null,"管理番号"]
[null,"ます・取付管改築工事費"]
[null,"舗装復旧費"]
[null,"計",{"$f":"C41+C42","v":0},null,null,null,null,null,"消費税率",null,null,null,null,10]
[null,"消費税",{"$f":"C43*N43/100","v":0}]
[null,"合計",{"$f":"C43+C44","v":0}]
[]
[]
[]
[null,null,null,null,null,null,null,null,null,null,null,null,null,null,null,null,null,null,"東灘区"]
[null,null,null,null,null,null,null,null,null,null,null,null,null,null,null,null,null,null,"灘区"]
[null,null,null,null,null,null,null,null,null,null,null,null,null,null,null,null,null,null,"中央区"]
[null,null,null,null,null,null,null,null,null,null,null,null,null,null,null,null,null,null,"兵庫区"]
[null,null,null,null,null,null,null,null,null,null,null,null,null,null,null,null,null,null,"長田区"]
[null,null,null,null,null,null,null,null,null,null,null,null,null,null,null,null,null,null,"須磨区"]
[null,null,null,null,null,null,null,null,null,null,null,null,null,null,null,null,null,null,"垂水区"]
[null,null,null,null,null,null,null,null,null,null,null,null,null,null,null,null,null,null,"西区"]
[null,null,null,null,null,null,null,null,null,null,null,null,null,null,null,null,null,null,"北区"]
[]
[]
[null,null,null,null,null,null,null,null,null,null,null,null,null,null,null,null,null,null,"□"]
[null,null,null,null,null,null,null,null,null,null,null,null,null,null,null,null,null,null,"■"]

{"sheet":"舗装検査書類","index":7,"n_rows":46,"n_cols":20,"rows_kept":46,"cut":false,"hidden":false,"merged":[[27,1,28,1],[27,11,27,18],[27,3,27,7],[28,3,28,7],[28,9,28,13],[28,16,28,18],[22,2,22,4],[22,5,22,6],[22,11,22,13],[22,14,22,18],[17,1,24,1],[24,2,24,6],[24,9,24,10],[23,2,23,4],[23,5,23,6],[23,11,23,13],[23,14,23,18],[24,11,24,13],[24,14,24,18],[21,2,21,4],[19,14,19,18],[19,11,19,13],[19,5,19,6],[19,2,19,4],[21,5,21,6],[21,11,21,13],[21,14,21,18],[11,6,11,18],[13,3,13,5],[13,6,13,10],[13,11,13,18],[25,2,25,18],[17,2,18,6],[17,14,18,18],[17,11,18,13],[18,7,18,8],[18,9,18,10],[15,6,15,10],[15,11,15,18],[16,3,16,5],[16,6,16,10],[16,11,16,18],[12,3,12,5],[26,2,26,18],[17,0,24,0],[17,7,17,10],[14,3,14,5],[14,6,14,10],[14,11,14,18],[15,3,15,5],[8,0,15,0],[11,1,16,1],[12,11,12,18],[12,6,12,10],[11,2,11,5],[20,14,20,18],[20,11,20,13],[20,5,20,6],[20,2,20,4],[8,2,8,3],[8,4,8,5],[8,8,8,18],[10,2,10,3],[10,4,10,18],[9,2,9,3],[9,4,9,9],[9,10,9,11],[9,12,9,18]]}
["道路掘削跡復旧工事検査願書類作成シート"]
["シート入力後、以下の書類を提出してください"]
[null,"道路掘削跡復旧工事検査願作成様式兼舗装面積計算書",null,null,null,"シート⑲","に舗装復旧範囲図面・面積計算書を挿入または別途添付"]
[null,"位置図",null,null,null,"シート②","様式シートに画像データを貼り付け"]
[null,"道路掘削許可証（副）の写し",null,null,null,"別途添付"]
[null,"工事写真（管工事・舗装）",null,null,null,"別途添付"]
[]
[null,"白色部分に入力してください。入力欄が　の場合、該当する時は〇を選択してください。"]
[null,"掘削許可番号","道占",null,null,null,"第",null,"号"]
[null,"工事期間（和暦）","開始日",null,{"$f":"施工承認申請書類!E43","v":"00:00:00"},null,null,null,null,null,"終了日",null,{"$f":"施工承認申請書類!M43","v":"00:00:00"}]
[null,"管理番号",{"$f":"完成検査書類!C22","v":0}]
[null,"舗装復業者","復旧業者を選択",null,null,null,"復旧業者名記入"]
[null,null,null,"申請者復旧"]
[null,null,null,"他社復旧（ガス）"]
[null,null,null,"他社復旧（水道）"]
[null,null,null,"他社復旧（建築24条）"]
[null,null,null,"他社復旧（その他）"]
[null,"舗装復旧面積","工種区分",null,null,null,null,"復旧面積",null,null,null,"適用"]
[null,null,null,null,null,null,null,"実掘部",null,"影響部"]
[null,null,null,null,null,"号工",null,null,"㎡",null,"㎡",null,null,null,null,null,null,null,null,"←面積、延長は小数点以下第2位を四捨五入"]
[null,null,null,null,null,"号工",null,null,"㎡",null,"㎡"]
[null,null,null,null,null,"号工",null,null,"㎡",null,"㎡"]
[null,null,null,null,null,"号工",null,null,"㎡",null,"㎡"]
[null,null,null,null,null,"号工",null,null,"㎡",null,"㎡"]
[null,null,"白線",null,null,null,null,null,"m"]
[null,"舗装復旧工程写真の有無（選択）"]
[null,"無の場合の理由"]
[null,"添付書類（添付するものに〇）",null,"検査願作成様式兼面積計算書",null,null,null,null,null,"位置図",null,"舗装風旧面積集計表"]
[null,null,null,"道路掘削許可証（副）の写し",null,null,null,null,null,"工事写真（管工事・舗装）",null,null,null,null,null,"その他"]
[]
[]
[]
[]
[]
[]
[null,null,null,null,null,null,null,null,null,null,null,null,null,null,null,null,null,null,"東部"]
[null,null,null,null,null,null,null,null,null,null,null,null,null,null,null,null,null,null,"中部"]
[null,null,null,null,null,null,null,null,null,null,null,null,null,null,null,null,null,null,"西部"]
[null,null,null,null,null,null,null,null,null,null,null,null,null,null,null,null,null,null,"垂水"]
[null,null,null,null,null,null,null,null,null,null,null,null,null,null,null,null,null,null,"西"]
[null,null,null,null,null,null,null,null,null,null,null,null,null,null,null,null,null,null,"北"]
[]
[null,null,null,null,null,null,null,null,null,null,null,null,null,null,null,null,null,null,"〇"]
[]
[null,null,null,null,null,null,null,null,null,null,null,null,null,null,null,null,null,null,"有"]
[null,null,null,null,null,null,null,null,null,null,null,null,null,null,null,null,null,null,"無"]

{"sheet":"取下書類","index":8,"n_rows":29,"n_cols":19,"rows_kept":29,"cut":false,"hidden":false,"merged":[[7,0,8,0],[6,2,6,18],[7,2,7,18],[8,2,8,18],[9,2,9,18],[13,2,16,18],[13,1,16,1],[10,2,10,3],[10,4,10,7],[10,8,10,9],[10,10,10,11],[10,12,10,18],[11,1,12,1],[11,2,11,3],[11,4,11,18],[12,2,12,3],[12,4,12,18]]}
["承認申請取下げ書類作成シート"]
["シート入力後、以下の書類を提出してください"]
[null,"取付管・接続ます承認工事　申請取下げ届",null,null,null,"シート(21)"]
[null,"取付管・接続ますの（新築・改築）工事施工承認通知書",null,null,null,"別途添付"]
[]
[null,"白色部分に入力してください。入力欄が□の場合、該当する時は■を選択してください。"]
[null,"提出日（和暦）"]
["申請者","住所",{"$f":"施工承認申請書類!C18","v":0}]
[null,"氏名",{"$f":"施工承認申請書類!C19","v":0}]
[null,"管理番号"]
[null,"承認番号","承認日",null,null,null,null,null,"神建下管",null,null,null,"号"]
[null,"工事場所","区（選択）",null,"区以降（入力）"]
[null,null,{"$f":"施工承認申請書類!C23","v":0},null,{"$f":"施工承認申請書類!E23","v":0}]
[null,"取下げ理由"]
[]
[]
[]
[]
[]
[]
[]
[null,null,null,null,null,null,null,null,null,null,null,null,null,null,null,null,null,null,"東灘区"]
[null,null,null,null,null,null,null,null,null,null,null,null,null,null,null,null,null,null,"灘区"]
[null,null,null,null,null,null,null,null,null,null,null,null,null,null,null,null,null,null,"中央区"]
[null,null,null,null,null,null,null,null,null,null,null,null,null,null,null,null,null,null,"兵庫区"]
[null,null,null,null,null,null,null,null,null,null,null,null,null,null,null,null,null,null,"長田区"]
[null,null,null,null,null,null,null,null,null,null,null,null,null,null,null,null,null,null,"須磨区"]
[null,null,null,null,null,null,null,null,null,null,null,null,null,null,null,null,null,null,"西区"]
[null,null,null,null,null,null,null,null,null,null,null,null,null,null,null,null,null,null,"北区"]

{"sheet":"①調査報告書","index":9,"n_rows":48,"n_cols":31,"rows_kept":48,"cut":false,"hidden":false,"merged":[[16,0,16,3],[16,4,16,7],[16,22,16,24],[16,26,16,28],[21,10,21,11],[0,0,1,16],[1,18,1,22],[1,24,1,29],[3,1,6,12],[3,22,3,31],[4,14,5,16],[4,22,4,31],[0,25,0,31],[5,22,5,31],[6,22,6,31],[11,10,11,11],[12,0,12,31],[16,10,16,11],[11,21,11,25],[11,26,11,31],[8,1,10,3],[8,4,10,16],[41,2,41,29],[44,2,44,29],[23,21,23,27],[25,9,25,15],[25,18,25,24],[27,4,27,7],[35,2,35,29],[38,2,38,29],[23,4,25,7],[23,9,23,19],[18,4,18,7],[21,0,21,3],[21,4,21,7],[18,10,18,11]]}
["公共下水道（取付管・接続ます）の調査報告書",null,null,null,null,null,null,null,null,null,null,null,null,null,null,null,null,null,null,null,null,null,null,null,null,{"$f":"調査報告書類!C10","v":"00:00:00"}]
[null,null,null,null,null,null,null,null,null,null,null,null,null,null,null,null,null,null,null,null,null,null,null,"区",null,null,null,null,null,null,"号"]
[null,"調査業者　（法人にあっては名称及び代表者氏名、指定工事店の場合は指定番号も記入すること）"]
[null,{"$f":"調査報告書類!C11","v":0},null,null,null,null,null,null,null,null,null,null,null,null,"指定番号",null,null,null,"電話番号",null,null,null,{"$f":"調査報告書類!C13","v":0}]
[null,null,null,null,null,null,null,null,null,null,null,null,null,null,{"$f":"調査報告書類!C12","v":0},null,null,null,"FAX番号",null,null,null,{"$f":"調査報告書類!C14","v":0}]
[null,null,null,null,null,null,null,null,null,null,null,null,null,null,null,null,null,null,"調査担当者",null,null,null,{"$f":"調査報告書類!C15","v":0}]
[null,null,null,null,null,null,null,null,null,null,null,null,null,null,null,null,null,null,"携帯番号",null,null,null,{"$f":"調査報告書類!C16","v":0}]
[null,"建築予定場所　（住居表示で記入・無いときは、宅地の地番）",null,null,null,null,null,null,null,null,null,null,null,null,null,null,null,"占用"]
[null,{"$f":"調査報告書類!C18","v":0},null,null,{"$f":"調査報告書類!E18","v":0},null,null,null,null,null,null,null,null,null,null,null,null,{"$f":"調査報告書類!C19","v":"□"},"神戸市道",null,null,{"$f":"調査報告書類!E19","v":"□"},"私道",null,{"$f":"調査報告書類!G19","v":"□"},"一般国道"]
[null,null,null,null,null,null,null,null,null,null,null,null,null,null,null,null,null,{"$f":"調査報告書類!I19","v":"□"},"港湾道路",null,null,{"$f":"調査報告書類!K19","v":"□"},"区画整理",null,null,{"$f":"調査報告書類!M19","v":"□"},"河川敷"]
[null,null,null,null,null,null,null,null,null,null,null,null,null,null,null,null,null,{"$f":"調査報告書類!O19","v":"□"},"宅内",null,null,"その他（　　　　　　",null,null,{"$f":"IF(調査報告書類!S19=\"\",\"\",調査報告書類!S19)","v":""},null,null,null,null,"）"]
["同時引き込み予定：",null,null,null,null,null,{"$f":"調査報告書類!C21","v":"□"},"水道",null,{"$f":"調査報告書類!E21","v":"□"},"ガス",null,"宅地割の予定：",null,null,null,{"$f":"調査報告書類!C22","v":"□"},"有",{"$f":"調査報告書類!E22","v":"□"},"無",null,"建築予定時期：",null,null,null,null,{"$f":"調査報告書類!C23","v":0}]
["調査前に準備する物：　A3　1/500程度の台帳図　本管・取付管説明図　各１枚　市HPより出図"]
[null,null,null,null,"敷地内に複数の取付管・接続ますがある場合、その件数分の調査報告書を提出してください。"]
[null,null,null,null,"該当する項目に☑をしてください。"]
["１．台帳図表記情報"]
[null,null,null,null,"本管",null,null,null,"管径：",null,{"$f":"調査報告書類!D25","v":0},null,"mm",{"$f":"調査報告書類!G25","v":"□"},"　HP",null,null,{"$f":"調査報告書類!I25","v":"□"},"　K１",null,null,{"$f":"調査報告書類!K25","v":"□"},"K　　HP",null,null,{"$f":"調査報告書類!M25","v":"□"},"　その他"]
[]
[null,null,null,null,"取付管",null,null,null,"管径：",null,{"$f":"調査報告書類!D27","v":0},null,"mm",{"$f":"調査報告書類!G27","v":"□"},"　HP",null,null,{"$f":"調査報告書類!I27","v":"□"},"　K１",null,null,{"$f":"調査報告書類!K29","v":"□"},"K　　HP",null,null,{"$f":"調査報告書類!M27","v":"□"},"　　無"]
[]
["２　現地調査情報"]
[null,null,null,null,"取付管",null,null,null,"管径：",null,{"$f":"調査報告書類!D29","v":0},null,"mm",{"$f":"調査報告書類!G29","v":"□"},"　HP",null,null,{"$f":"調査報告書類!I29","v":"□"},"　K１",null,null,{"$f":"調査報告書類!K29","v":"□"},"K　　HP",null,null,{"$f":"調査報告書類!M29","v":"□"},"　　無"]
[]
[null,null,null,null,"接続ます",null,null,null,{"$f":"調査報告書類!C30","v":"□"},"Φ350　コンクリートます・市章入蓋",null,null,null,null,null,null,null,null,null,null,{"$f":"調査報告書類!G30","v":"□"},"小口径塩ビます"]
[]
[null,null,null,null,null,null,null,null,{"$f":"調査報告書類!K30","v":"□"},"コンクリートます・蓋なし",null,null,null,null,null,null,null,{"$f":"調査報告書類!O30","v":"□"},"コンクリートますなし"]
[]
[null,null,null,null,"使用状況",null,null,null,{"$f":"調査報告書類!C31","v":"□"},"別からの排水設備の流入なし",null,null,null,null,null,null,null,{"$f":"調査報告書類!K31","v":"□"},"別からの排水設備流入の疑いあり（通称：共排）"]
[]
["３．使用予定の有無"]
[null,null,null,null,null,null,null,null,{"$f":"調査報告書類!C32","v":"□"},"使用する",null,null,null,null,null,null,null,{"$f":"調査報告書類!G32","v":"□"},"使用しない（撤去）"]
[]
[]
[null,"神戸市記入欄"]
[]
[]
[]
[]
[]
[]
[]
[]
[]
[]
[]
[]
[]
[null,"※提出方法や添付資料については「直接申請・無人・郵送受付、提出書類チェックリスト（改築工事）用」をご確認下さい。"]

{"sheet":"②位置図","index":10,"n_rows":6,"n_cols":20,"rows_kept":6,"cut":false,"hidden":false,"merged":[[5,1,5,6],[5,7,5,14],[5,15,5,24],[1,1,3,3],[1,15,3,17],[1,18,3,18],[1,4,3,14],[1,19,3,25]]}
[]
[null,{"$f":"調査報告書類!C18","v":0},null,null,{"$f":"調査報告書類!E18","v":0},null,null,null,null,null,null,null,null,null,null,"住宅地図",null,null,"北・南",{"$f":"IF(施工承認申請書類!C24<>\"\",施工承認申請書類!C24,調査報告書類!C20&完成検査書類!C23&\"\")","v":"0"}]
[]
[]
[]
[null,"位　置　図",null,null,null,null,null,"縮尺　1/1000～1/1500",null,null,null,null,null,null,null,"施工場所付近を中心にする"]

{"sheet":"③現地写真","index":11,"n_rows":64,"n_cols":16,"rows_kept":64,"cut":false,"hidden":false,"merged":[[63,1,80,6],[63,8,80,13],[3,0,20,0],[3,1,20,6],[3,8,20,13],[23,1,40,6],[23,8,40,13],[43,1,60,6],[43,8,60,13]]}
[null,null,{"$f":"調査報告書類!C18","v":0},null,{"$f":"調査報告書類!E18","v":0},null,null,null,"住宅地図",null,{"$f":"調査報告書類!C20","v":0}]
[]
[null,"①遠景",null,null,null,null,null,null,"②近景",null,null,null,null,null,null,"余白欄をクリックして画像を挿入してください"]
[null,"余　白",null,null,null,null,null,null,"余　白",null,null,null,null,null,null,"※マクロを有効にしておく必要があります"]
[]
[]
[]
[]
[]
[]
[]
[]
[]
[]
[]
[]
[]
[]
[]
[]
[]
[]
[null,"③対面",null,null,null,null,null,null,"④ます周り"]
[null,"余　白",null,null,null,null,null,null,"余　白"]
[]
[]
[]
[]
[]
[]
[]
[]
[]
[]
[]
[]
[]
[]
[]
[]
[]
[]
[null,"⑤ます深",null,null,null,null,null,null,"⑥ます位置"]
[null,"余　白",null,null,null,null,null,null,"余　白"]
[]
[]
[]
[]
[]
[]
[]
[]
[]
[]
[]
[]
[]
[]
[]
[]
[]
[]
[null,"⑦取付管口",null,null,null,null,null,null,"⑧その他（　　　　　　　）※必要に応じて写真添付"]
[null,"余　白",null,null,null,null,null,null,"余　白"]

{"sheet":"④施工承認申請書","index":12,"n_rows":72,"n_cols":65,"rows_kept":72,"cut":false,"hidden":false,"merged":[[10,37,10,39],[19,41,20,42],[19,51,20,64],[1,5,1,16],[13,5,20,8],[13,9,14,13],[17,9,18,13],[15,41,16,42],[15,43,16,44],[17,37,18,40],[7,5,8,16],[13,14,14,36],[17,14,18,36],[19,9,20,36],[2,34,4,37],[2,38,4,57],[6,51,6,61],[2,15,4,33],[15,39,16,40],[13,37,14,40],[19,39,20,40],[19,37,20,38],[13,41,14,44],[15,37,16,38],[13,45,14,64],[19,45,20,50],[21,5,25,8],[26,9,30,10],[21,20,23,41],[36,5,41,8],[29,49,30,64],[34,49,35,64],[34,42,35,48],[31,18,33,41],[31,42,33,48],[21,49,23,64],[26,5,35,8],[31,9,35,10],[21,42,23,48],[36,42,41,43],[26,42,28,48],[29,42,30,48],[26,49,28,64],[31,49,33,64],[36,52,37,53],[36,57,37,58],[38,44,39,45],[38,46,39,51],[24,49,25,64],[71,42,74,45],[70,56,70,60],[70,61,70,64],[70,25,70,38],[71,25,71,38],[59,46,61,50],[59,51,61,55],[71,51,74,55],[59,56,61,56],[59,57,61,58],[59,59,61,63],[59,64,61,64],[71,56,74,60],[71,61,74,64],[71,46,74,50],[70,51,70,55],[70,46,70,50],[66,8,68,63],[48,5,56,8],[70,42,70,45],[39,39,41,41],[36,9,38,38],[39,9,41,38],[36,59,37,64],[49,42,51,64],[42,11,44,22],[45,11,47,18],[42,25,44,33],[45,21,47,24],[42,36,44,50],[42,53,44,64],[45,26,47,48],[42,51,44,52],[40,60,41,63],[40,64,41,64],[40,46,41,51],[40,52,41,53],[49,37,51,39],[40,44,41,45],[38,52,39,53],[42,5,47,8],[36,54,37,56],[38,54,39,58],[38,59,39,60],[38,61,39,64],[24,42,25,48],[24,20,25,41],[15,9,16,36],[24,13,25,19],[21,13,23,19],[21,9,23,12],[24,9,25,12],[36,39,38,41],[29,15,30,21],[26,11,28,14],[29,11,30,14],[26,22,28,41],[29,22,30,41],[26,15,28,21],[34,18,35,41],[34,11,35,17],[31,11,33,17],[36,44,37,45],[36,46,37,51],[17,46,18,63],[15,46,16,50],[15,51,16,63],[17,41,18,44],[19,43,20,44],[40,54,41,58],[40,59,41,59],[53,10,55,10],[53,31,55,32],[42,10,44,10],[42,23,44,24],[42,34,44,35],[45,10,47,10],[45,19,47,20],[49,10,51,10],[49,16,51,17],[49,23,51,24],[49,35,51,36],[49,40,51,41],[49,11,51,15],[53,11,55,30],[53,33,55,64],[49,18,51,22],[49,25,51,34]]}
[]
[]
[null,null,null,null,null,null,null,null,null,null,null,null,null,null,null,"取 付 管 ・ 接 続 ま す",null,null,null,null,null,null,null,null,null,null,null,null,null,null,null,null,null,null,{"$f":"施工承認申請書類!C15","v":"00:00:00"},null,null,null,"工 事 施 工 承 認 申 請 書"]
[]
[]
[]
[null,null,null,null,null,null,null,null,null,null,null,null,null,null,null,null,null,null,null,null,null,null,null,null,null,null,null,null,null,null,null,null,null,null,null,null,null,null,null,null,null,null,null,null,null,null,null,null,null,null,null,{"$f":"施工承認申請書類!C16","v":"00:00:00"}]
[null,null,null,null,null,"神 戸 市 長　 あて"]
[]
[]
[null,null,null,null,null," 下記のとおり下水道法第１６条の規定により、取付管・接続ます",null,null,null,null,null,null,null,null,null,null,null,null,null,null,null,null,null,null,null,null,null,null,null,null,null,null,null,null,null,null,null,{"$f":"施工承認申請書類!C15","v":"00:00:00"},null,null,"工事を申請します。"]
[null,null,null,null,null,"なお、工事完成後の公共下水道施設は完成検査合格後、無償にて市に帰属することを承諾します。　"]
[]
[null,null,null,null,null,"申\n 　\n請　\n\n者",null,null,null,"住　　所",null,null,null,null,{"$f":"施工承認申請書類!C17","v":"00:00:00"},null,null,null,null,null,null,null,null,null,null,null,null,null,null,null,null,null,null,null,null,null,null,"新設",null,null,null,"撤去",null,null,null,"接続ます設置場所"]
[]
[null,null,null,null,null,null,null,null,null,{"$f":"施工承認申請書類!C18","v":0},null,null,null,null,null,null,null,null,null,null,null,null,null,null,null,null,null,null,null,null,null,null,null,null,null,null,null,{"$f":"施工承認申請書類!E21","v":0},null,"箇所",null,{"$f":"施工承認申請書類!G21","v":0},null,"箇所",null,null,"神戸市",null,null,null,null,{"$f":"調査報告書類!C18","v":0}]
[]
[null,null,null,null,null,null,null,null,null,"\n氏　　名\n",null,null,null,null,null,null,null,null,null,null,null,null,null,null,null,null,null,null,null,null,null,null,null,null,null,null,null,"入替",null,null,null,"ますのみ",null,null,null,null,{"$f":"施工承認申請書類!E23","v":0}]
[]
[null,null,null,null,null,null,null,null,null,{"$f":"施工承認申請書類!C19","v":0},null,null,null,null,null,null,null,null,null,null,null,null,null,null,null,null,null,null,null,null,null,null,null,null,null,null,null,{"$f":"施工承認申請書類!I21","v":0},null,"箇所",null,{"$f":"施工承認申請書類!K21","v":0},null,"箇所",null,"住宅地図",null,null,null,null,null,{"$f":"施工承認申請書類!C24","v":0}]
[]
[null,null,null,null,null,"受　 \n任　 \n者",null,null,null,"指定　　番号",null,null,null,"受 任 者 名",null,null,null,null,null,null,{"$f":"施工承認申請書類!C26","v":0},null,null,null,null,null,null,null,null,null,null,null,null,null,null,null,null,null,null,null,null,null,"責任技術者名",null,null,null,null,null,null,{"$f":"施工承認申請書類!C30","v":0}]
[]
[]
[null,null,null,null,null,null,null,null,null,{"$f":"施工承認申請書類!C25","v":0},null,null,null,"電 話 番 号",null,null,null,null,null,null,{"$f":"施工承認申請書類!C29","v":0},null,null,null,null,null,null,null,null,null,null,null,null,null,null,null,null,null,null,null,null,null,"携帯電話番号",null,null,null,null,null,null,{"$f":"施工承認申請書類!C31","v":0}]
[]
[null,null,null,null,null,"工\n事\nの\n施\n工\n者",null,null,null,"管　\n工\n事",null,"指定\n番号",null,null,null,"施工業者名",null,null,null,null,null,null,{"$f":"施工承認申請書類!C33","v":0},null,null,null,null,null,null,null,null,null,null,null,null,null,null,null,null,null,null,null,"現場責任者名",null,null,null,null,null,null,{"$f":"施工承認申請書類!C36","v":0}]
[]
[]
[null,null,null,null,null,null,null,null,null,null,null,{"$f":"施工承認申請書類!C32","v":0},null,null,null,"電 話 番 号",null,null,null,null,null,null,{"$f":"施工承認申請書類!C35","v":0},null,null,null,null,null,null,null,null,null,null,null,null,null,null,null,null,null,null,null,"携帯電話番号",null,null,null,null,null,null,{"$f":"施工承認申請書類!C37","v":0}]
[]
[null,null,null,null,null,null,null,null,null,"舗装復旧工事",null,"施工業者名",null,null,null,null,null,null,{"$f":"施工承認申請書類!C38","v":0},null,null,null,null,null,null,null,null,null,null,null,null,null,null,null,null,null,null,null,null,null,null,null,"現場責任者名",null,null,null,null,null,null,{"$f":"施工承認申請書類!C41","v":0}]
[]
[]
[null,null,null,null,null,null,null,null,null,null,null,"電 話 番 号",null,null,null,null,null,null,{"$f":"施工承認申請書類!C40","v":0},null,null,null,null,null,null,null,null,null,null,null,null,null,null,null,null,null,null,null,null,null,null,null,"携帯電話番号",null,null,null,null,null,null,{"$f":"施工承認申請書類!C42","v":0}]
[]
[null,null,null,null,null,"工事\n期間\n(予定)",null,null,null,{"$f":"施工承認申請書類!E43","v":"00:00:00"},null,null,null,null,null,null,null,null,null,null,null,null,null,null,null,null,null,null,null,null,null,null,null,null,null,null,null,null,null,"から",null,null,"占\n\n用",null,{"$f":"施工承認申請書類!C44","v":"□"},null,"神戸市道",null,null,null,null,null,{"$f":"施工承認申請書類!E44","v":"□"},null,"私道",null,null,{"$f":"施工承認申請書類!G44","v":"□"},null,"一般国道"]
[]
[null,null,null,null,null,null,null,null,null,null,null,null,null,null,null,null,null,null,null,null,null,null,null,null,null,null,null,null,null,null,null,null,null,null,null,null,null,null,null,null,null,null,null,null,{"$f":"施工承認申請書類!I44","v":"□"},null,"港湾道路",null,null,null,null,null,{"$f":"施工承認申請書類!K44","v":"□"},null,"区画整理",null,null,null,null,{"$f":"施工承認申請書類!M44","v":"□"},null,"河川敷"]
[null,null,null,null,null,null,null,null,null,{"$f":"施工承認申請書類!M43","v":"00:00:00"},null,null,null,null,null,null,null,null,null,null,null,null,null,null,null,null,null,null,null,null,null,null,null,null,null,null,null,null,null,"まで"]
[null,null,null,null,null,null,null,null,null,null,null,null,null,null,null,null,null,null,null,null,null,null,null,null,null,null,null,null,null,null,null,null,null,null,null,null,null,null,null,null,null,null,null,null,{"$f":"施工承認申請書類!O44","v":"□"},null,"宅内",null,null,null,null,null,{"$f":"施工承認申請書類!Q44","v":"□"},null,"その他",null,null,null,null,"（",{"$f":"施工承認申請書類!S44","v":0},null,null,null,"）"]
[]
[null,null,null,null,null,"他 \n工\n事 \n",null,null,null,null,{"$f":"施工承認申請書類!C45","v":"□"},"水道給水管引込工事",null,null,null,null,null,null,null,null,null,null,null,{"$f":"施工承認申請書類!E45","v":"□"},null,"ガス管引込工事",null,null,null,null,null,null,null,null,{"$f":"施工承認申請書類!G45","v":"□"},null,"道路法第２４条の規定による工事",null,null,null,null,null,null,null,null,null,null,null,null,null,null,{"$f":"施工承認申請書類!I45","v":"□"},null,"開発行為"]
[]
[]
[null,null,null,null,null,null,null,null,null,null,{"$f":"施工承認申請書類!K45","v":"□"},"共同排水分離",null,null,null,null,null,null,null,{"$f":"施工承認申請書類!M45","v":"□"},null,"その他",null,null,null,null,{"$f":"施工承認申請書類!O45","v":0}]
[null,null,null,null,null,null,null,null,null,null,null,null,null,null,null,null,null,null,null,null,null,null,null,null,null,"（",null,null,null,null,null,null,null,null,null,null,null,null,null,null,null,null,null,null,null,null,null,null,null,"）"]
[]
[null,null,null,null,null,"添 \n付 \n書 \n類　　　　　　　　　　　　　　　　　　　　　　　　　　　　　　　　　　　　　　　　　　　　　　　　　　　　　　　　　　　　　　　　　　　　　　　　　　　　　　　　　　　　　　　　　　　　　　　　　　　　　　　　　　"]
[null,null,null,null,null,null,null,null,null,null,{"$f":"施工承認申請書類!C46","v":"□"},"委任状",null,null,null,null,{"$f":"施工承認申請書類!E46","v":"□"},null,"位置図",null,null,null,null,{"$f":"施工承認申請書類!G46","v":"□"},null,"平面図・横断図",null,null,null,null,null,null,null,null,null,{"$f":"施工承認申請書類!K46","v":"□"},null,"写真",null,null,{"$f":"施工承認申請書類!M46","v":"□"},null,"下水道台帳図（本管・取付管説明図各1枚）"]
[]
[]
[]
[null,null,null,null,null,null,null,null,null,null,{"$f":"施工承認申請書類!C47","v":"□"},"道路占用許可申請関係書類【公道部】",null,null,null,null,null,null,null,null,null,null,null,null,null,null,null,null,null,null,null,{"$f":"施工承認申請書類!K47","v":"□"},null,"公共下水道工事関する承諾報告書【私道部】"]
[]
[]
[]
[]
[null,null,null,null,null,null,null,null,null,null,"※本申請書は、工事着手の２１日前までに提出してください。"]
[null,null,null,null,null,null,null,null,null,null,"※記入漏れや添付資料が不足している場合は、書類を受理できないことがあります。",null,null,null,null,null,null,null,null,null,null,null,null,null,null,null,null,null,null,null,null,null,null,null,null,null,null,null,null,null,null,null,null,null,null,null,"管理番号",null,null,null,null,null,null,null,null,null,"区","―",null,null,null,null,null,null,"号"]
[]
[]
[]
[]
[]
[]
[null,null,null,null,null,null,null,null,"　上記のとおり申請があり、書類審査の結果、適格と認め、別紙の条件を付して承認し、施工承認通知書により通知してよろしいか。（伺）"]
[]
[]
[]
[null,null,null,null,null,null,null,null,null,null,null,null,null,null,null,null,null,null,null,null,null,null,null,null,null,"神建下管第　　　　　　　　号",null,null,null,null,null,null,null,null,null,null,null,null,null,null,null,null,"課長",null,null,null,"担当課長",null,null,null,null,"担当係長",null,null,null,null,"担当",null,null,null,null,"担当"]
[null,null,null,null,null,null,null,null,null,null,null,null,null,null,null,null,null,null,null,null,null,null,null,null,null,"令和　　年　　月　　日"]

{"sheet":"④’施工承認申請書 (副)","index":13,"n_rows":60,"n_cols":65,"rows_kept":60,"cut":false,"hidden":false,"merged":[[10,37,10,39],[2,37,4,59],[59,46,61,50],[59,51,61,55],[59,56,61,56],[59,57,61,58],[59,59,61,63],[59,64,61,64],[53,10,55,10],[53,11,55,30],[53,31,55,32],[53,33,55,64],[49,37,51,39],[49,40,51,41],[49,42,51,64],[42,34,44,35],[42,36,44,50],[42,51,44,52],[42,53,44,64],[39,9,41,38],[39,39,41,41],[40,44,41,45],[40,46,41,51],[40,52,41,53],[48,5,56,8],[49,10,51,10],[49,11,51,15],[49,16,51,17],[49,18,51,22],[49,23,51,24],[49,25,51,34],[49,35,51,36],[45,10,47,10],[45,11,47,18],[45,19,47,20],[45,21,47,24],[45,26,47,48],[42,5,47,8],[42,10,44,10],[42,11,44,22],[42,23,44,24],[42,25,44,33],[40,59,41,59],[40,60,41,63],[40,64,41,64],[36,5,41,8],[36,9,38,38],[36,39,38,41],[36,42,41,43],[36,44,37,45],[36,46,37,51],[38,44,39,45],[38,46,39,51],[38,52,39,53],[38,54,39,58],[38,59,39,60],[38,61,39,64],[36,52,37,53],[36,54,37,56],[36,57,37,58],[36,59,37,64],[40,54,41,58],[29,11,30,14],[29,15,30,21],[29,22,30,41],[29,42,30,48],[29,49,30,64],[26,49,28,64],[26,5,35,8],[26,9,30,10],[26,11,28,14],[26,15,28,21],[26,22,28,41],[26,42,28,48],[34,11,35,17],[34,18,35,41],[34,42,35,48],[34,49,35,64],[31,9,35,10],[31,11,33,17],[31,18,33,41],[31,42,33,48],[31,49,33,64],[19,51,20,64],[17,9,18,13],[17,14,18,36],[17,37,18,40],[17,41,18,44],[17,46,18,63],[24,49,25,64],[21,5,25,8],[21,9,23,12],[21,13,23,19],[21,20,23,41],[21,42,23,48],[21,49,23,64],[24,9,25,12],[24,13,25,19],[24,20,25,41],[24,42,25,48],[6,51,6,61],[7,5,8,16],[1,5,1,16],[2,13,4,31],[2,32,4,36],[15,51,16,63],[15,9,16,36],[15,37,16,38],[15,39,16,40],[15,41,16,42],[15,43,16,44],[15,46,16,50],[13,5,20,8],[13,9,14,13],[13,14,14,36],[13,37,14,40],[13,41,14,44],[13,45,14,64],[19,9,20,36],[19,37,20,38],[19,39,20,40],[19,41,20,42],[19,43,20,44],[19,45,20,50]]}
[]
[]
[null,null,null,null,null,null,null,null,null,null,null,null,null,"取 付 管 ・ 接 続 ま す",null,null,null,null,null,null,null,null,null,null,null,null,null,null,null,null,null,null,{"$f":"施工承認申請書類!C15","v":"00:00:00"},null,null,null,null,"工 事 施 工 承 認 申 請 書（副）"]
[]
[]
[]
[null,null,null,null,null,null,null,null,null,null,null,null,null,null,null,null,null,null,null,null,null,null,null,null,null,null,null,null,null,null,null,null,null,null,null,null,null,null,null,null,null,null,null,null,null,null,null,null,null,null,null,{"$f":"施工承認申請書類!C16","v":"00:00:00"}]
[null,null,null,null,null,"神 戸 市 長　 あて"]
[]
[]
[null,null,null,null,null," 下記のとおり下水道法第１６条の規定により、取付管・接続ます",null,null,null,null,null,null,null,null,null,null,null,null,null,null,null,null,null,null,null,null,null,null,null,null,null,null,null,null,null,null,null,{"$f":"施工承認申請書類!C15","v":"00:00:00"},null,null,"工事を申請します。"]
[null,null,null,null,null,"なお、工事完成後の公共下水道施設は完成検査合格後、無償にて市に帰属することを承諾します。　"]
[]
[null,null,null,null,null,"申\n 　\n請　\n\n者",null,null,null,"住　　所",null,null,null,null,{"$f":"施工承認申請書類!C17","v":"00:00:00"},null,null,null,null,null,null,null,null,null,null,null,null,null,null,null,null,null,null,null,null,null,null,"新設",null,null,null,"撤去",null,null,null,"接続ます設置場所"]
[]
[null,null,null,null,null,null,null,null,null,{"$f":"施工承認申請書類!C18","v":0},null,null,null,null,null,null,null,null,null,null,null,null,null,null,null,null,null,null,null,null,null,null,null,null,null,null,null,{"$f":"施工承認申請書類!E21","v":0},null,"箇所",null,{"$f":"施工承認申請書類!G21","v":0},null,"箇所",null,null,"神戸市",null,null,null,null,{"$f":"調査報告書類!C18","v":0}]
[]
[null,null,null,null,null,null,null,null,null,"\n氏　　名\n",null,null,null,null,null,null,null,null,null,null,null,null,null,null,null,null,null,null,null,null,null,null,null,null,null,null,null,"入替",null,null,null,"ますのみ",null,null,null,null,{"$f":"施工承認申請書類!E23","v":0}]
[]
[null,null,null,null,null,null,null,null,null,{"$f":"施工承認申請書類!C19","v":0},null,null,null,null,null,null,null,null,null,null,null,null,null,null,null,null,null,null,null,null,null,null,null,null,null,null,null,{"$f":"施工承認申請書類!I21","v":0},null,"箇所",null,{"$f":"施工承認申請書類!K21","v":0},null,"箇所",null,"住宅地図",null,null,null,null,null,{"$f":"施工承認申請書類!C24","v":0}]
[]
[null,null,null,null,null,"受　 \n任　 \n者",null,null,null,"指定　　番号",null,null,null,"受 任 者 名",null,null,null,null,null,null,{"$f":"施工承認申請書類!C26","v":0},null,null,null,null,null,null,null,null,null,null,null,null,null,null,null,null,null,null,null,null,null,"責任技術者名",null,null,null,null,null,null,{"$f":"施工承認申請書類!C30","v":0}]
[]
[]
[null,null,null,null,null,null,null,null,null,{"$f":"施工承認申請書類!C25","v":0},null,null,null,"電 話 番 号",null,null,null,null,null,null,{"$f":"施工承認申請書類!C29","v":0},null,null,null,null,null,null,null,null,null,null,null,null,null,null,null,null,null,null,null,null,null,"携帯電話番号",null,null,null,null,null,null,{"$f":"施工承認申請書類!C31","v":0}]
[]
[null,null,null,null,null,"工\n事\nの\n施\n工\n者",null,null,null,"管　\n工\n事",null,"指定\n番号",null,null,null,"施工業者名",null,null,null,null,null,null,{"$f":"施工承認申請書類!C33","v":0},null,null,null,null,null,null,null,null,null,null,null,null,null,null,null,null,null,null,null,"現場責任者名",null,null,null,null,null,null,{"$f":"施工承認申請書類!C36","v":0}]
[]
[]
[null,null,null,null,null,null,null,null,null,null,null,{"$f":"施工承認申請書類!C32","v":0},null,null,null,"電 話 番 号",null,null,null,null,null,null,{"$f":"施工承認申請書類!C35","v":0},null,null,null,null,null,null,null,null,null,null,null,null,null,null,null,null,null,null,null,"携帯電話番号",null,null,null,null,null,null,{"$f":"施工承認申請書類!C37","v":0}]
[]
[null,null,null,null,null,null,null,null,null,"舗装復旧工事",null,"施工業者名",null,null,null,null,null,null,{"$f":"施工承認申請書類!C38","v":0},null,null,null,null,null,null,null,null,null,null,null,null,null,null,null,null,null,null,null,null,null,null,null,"現場責任者名",null,null,null,null,null,null,{"$f":"施工承認申請書類!C41","v":0}]
[]
[]
[null,null,null,null,null,null,null,null,null,null,null,"電 話 番 号",null,null,null,null,null,null,{"$f":"施工承認申請書類!C40","v":0},null,null,null,null,null,null,null,null,null,null,null,null,null,null,null,null,null,null,null,null,null,null,null,"携帯電話番号",null,null,null,null,null,null,{"$f":"施工承認申請書類!C42","v":0}]
[]
[null,null,null,null,null,"工事\n期間\n(予定)",null,null,null,{"$f":"施工承認申請書類!E43","v":"00:00:00"},null,null,null,null,null,null,null,null,null,null,null,null,null,null,null,null,null,null,null,null,null,null,null,null,null,null,null,null,null,"から",null,null,"占\n\n用",null,{"$f":"施工承認申請書類!C44","v":"□"},null,"神戸市道",null,null,null,null,null,{"$f":"施工承認申請書類!E44","v":"□"},null,"私道",null,null,{"$f":"施工承認申請書類!G44","v":"□"},null,"一般国道"]
[]
[null,null,null,null,null,null,null,null,null,null,null,null,null,null,null,null,null,null,null,null,null,null,null,null,null,null,null,null,null,null,null,null,null,null,null,null,null,null,null,null,null,null,null,null,{"$f":"施工承認申請書類!I44","v":"□"},null,"港湾道路",null,null,null,null,null,{"$f":"施工承認申請書類!K44","v":"□"},null,"区画整理",null,null,null,null,{"$f":"施工承認申請書類!M44","v":"□"},null,"河川敷"]
[null,null,null,null,null,null,null,null,null,{"$f":"施工承認申請書類!M43","v":"00:00:00"},null,null,null,null,null,null,null,null,null,null,null,null,null,null,null,null,null,null,null,null,null,null,null,null,null,null,null,null,null,"まで"]
[null,null,null,null,null,null,null,null,null,null,null,null,null,null,null,null,null,null,null,null,null,null,null,null,null,null,null,null,null,null,null,null,null,null,null,null,null,null,null,null,null,null,null,null,{"$f":"施工承認申請書類!O44","v":"□"},null,"宅内",null,null,null,null,null,{"$f":"施工承認申請書類!Q44","v":"□"},null,"その他",null,null,null,null,"（",{"$f":"施工承認申請書類!S44","v":0},null,null,null,"）"]
[]
[null,null,null,null,null,"他 \n工\n事 \n",null,null,null,null,{"$f":"施工承認申請書類!C45","v":"□"},"水道給水管引込工事",null,null,null,null,null,null,null,null,null,null,null,{"$f":"施工承認申請書類!E45","v":"□"},null,"ガス管引込工事",null,null,null,null,null,null,null,null,{"$f":"施工承認申請書類!G45","v":"□"},null,"道路法第２４条の規定による工事",null,null,null,null,null,null,null,null,null,null,null,null,null,null,{"$f":"施工承認申請書類!I45","v":"□"},null,"開発行為"]
[]
[]
[null,null,null,null,null,null,null,null,null,null,{"$f":"施工承認申請書類!K45","v":"□"},"共同排水分離",null,null,null,null,null,null,null,{"$f":"施工承認申請書類!M45","v":"□"},null,"その他",null,null,null,null,{"$f":"施工承認申請書類!O45","v":0}]
[null,null,null,null,null,null,null,null,null,null,null,null,null,null,null,null,null,null,null,null,null,null,null,null,null,"（",null,null,null,null,null,null,null,null,null,null,null,null,null,null,null,null,null,null,null,null,null,null,null,"）"]
[]
[null,null,null,null,null,"添 \n付 \n書 \n類　　　　　　　　　　　　　　　　　　　　　　　　　　　　　　　　　　　　　　　　　　　　　　　　　　　　　　　　　　　　　　　　　　　　　　　　　　　　　　　　　　　　　　　　　　　　　　　　　　　　　　　　　　"]
[null,null,null,null,null,null,null,null,null,null,{"$f":"施工承認申請書類!C46","v":"□"},"委任状",null,null,null,null,{"$f":"施工承認申請書類!E46","v":"□"},null,"位置図",null,null,null,null,{"$f":"施工承認申請書類!G46","v":"□"},null,"平面図・横断図",null,null,null,null,null,null,null,null,null,{"$f":"施工承認申請書類!K46","v":"□"},null,"写真",null,null,{"$f":"施工承認申請書類!M46","v":"□"},null,"下水道台帳図（本管・取付管説明図各1枚）"]
[]
[]
[]
[null,null,null,null,null,null,null,null,null,null,{"$f":"施工承認申請書類!C47","v":"□"},"道路占用許可申請関係書類【公道部】",null,null,null,null,null,null,null,null,null,null,null,null,null,null,null,null,null,null,null,{"$f":"施工承認申請書類!K47","v":"□"},null,"公共下水道工事関する承諾報告書【私道部】"]
[]
[]
[]
[]
[]
[null,null,null,null,null,null,null,null,null,null,null,null,null,null,null,null,null,null,null,null,null,null,null,null,null,null,null,null,null,null,null,null,null,null,null,null,null,null,null,null,null,null,null,null,null,null,"管理番号",null,null,null,null,null,null,null,null,null,"区","―",null,null,null,null,null,null,"号"]

{"sheet":"⑤委任状 ","index":14,"n_rows":42,"n_cols":13,"rows_kept":42,"cut":false,"hidden":false,"merged":[[3,0,3,14],[12,0,12,14],[29,2,29,3],[29,4,29,11],[30,5,30,12],[24,4,24,5],[28,1,28,2],[30,3,30,4],[24,6,24,13],[5,12,5,14],[27,3,27,4],[26,5,27,13],[31,2,31,3],[35,5,36,13],[36,3,36,4],[41,10,41,13],[41,5,41,8],[39,3,39,4],[40,2,40,3],[38,2,38,3],[38,4,38,11],[39,5,39,12],[31,5,32,13]]}
[]
[]
[]
["委  任  状"]
[]
[null,null,null,null,null,null,null,null,null,null,null,null,{"$f":"施工承認申請書類!C16","v":"00:00:00"}]
[null,"神戸市長 あて"]
[]
[]
[null,"私は、下記の受任者を代理人と定め、下記の権限を委任します。"]
[]
[]
["記"]
[]
[]
[null,"委任内容"]
[]
[null,{"$f":"施工承認申請書類!C48","v":"□"},"公共下水道　新設・移設・撤去およびマンホール蓋高調整工事に関する一切の権限"]
[null,{"$f":"施工承認申請書類!C49","v":"□"},"取付管・接続ます承認工事及び給付金の申請手続きに関する一切の権限"]
[null,{"$f":"施工承認申請書類!C50","v":"□"},"取付管・接続ます承認工事の申請手続きに関する一切の権限"]
[" "]
[]
[null,"工事場所"]
[]
[null,null,"神戸市",null,{"$f":"施工承認申請書類!C23","v":0},null,{"$f":"施工承認申請書類!E23","v":0}]
[]
[null,null,null,null,null,{"$f":"施工承認申請書類!C18","v":0}]
[null,"委 任 者",null,"住 所"]
[null,"（申請者）"]
[]
[null,null,null,"氏 名",null,"（法人にあっては、名称及び代表者の氏名）"]
[null,null,null,null,null,{"$f":"施工承認申請書類!C19","v":0}]
[]
[]
[]
[null,null,null,null,null,{"$f":"施工承認申請書類!C28","v":0}]
[null,"受 任 者",null,"住 所"]
[]
[]
[null,null,null,"氏 名",null,"（法人にあっては、名称及び代表者の氏名）"]
[]
[null,null,null,null,null,{"$f":"施工承認申請書類!C26","v":0},null,null,null,null,{"$f":"施工承認申請書類!C27","v":0}]

{"sheet":"⑥平面図・横断図","index":15,"n_rows":35,"n_cols":10,"rows_kept":35,"cut":false,"hidden":false,"merged":[[34,1,34,6],[1,20,3,21],[1,22,3,22],[1,23,3,24],[4,20,5,21],[5,1,5,6],[1,4,3,5],[1,6,3,6],[1,8,3,19]]}
[]
[null,null,null,null,{"$f":"施工承認申請書類!C23","v":0},null,null,null,{"$f":"施工承認申請書類!E23","v":0}]
[]
[]
[]
[null,"平　面　図",null,null,null,null,null,"縮　尺＝",null,"１/１００"]
[]
[]
[]
[]
[]
[]
[]
[]
[]
[]
[]
[]
[]
[]
[]
[]
[]
[]
[]
[]
[]
[]
[]
[]
[]
[]
[]
[]
[null,"横　断　図",null,null,null,null,null,"縮　尺＝",null,"１/１００"]

{"sheet":"⑦写真","index":16,"n_rows":24,"n_cols":9,"rows_kept":24,"cut":false,"hidden":false,"merged":[[3,0,20,0],[3,1,20,6],[23,1,40,6]]}
[null,null,{"$f":"施工承認申請書類!C23","v":0},{"$f":"施工承認申請書類!E23","v":0},null,"住宅地図",{"$f":"施工承認申請書類!C24","v":0}]
[]
[null,"遠景",null,null,null,null,null,null,"余白欄をクリックして画像を挿入してください"]
[null,"余　白",null,null,null,null,null,null,"※マクロを有効にしておく必要があります"]
[]
[]
[]
[]
[]
[]
[]
[]
[]
[]
[]
[]
[]
[]
[]
[]
[]
[]
[null,"近景"]
[null,"余　白"]

{"sheet":"⑧支援事業認定申請書","index":17,"n_rows":42,"n_cols":26,"rows_kept":42,"cut":false,"hidden":false,"merged":[[7,14,7,25],[3,20,3,25],[40,19,40,21],[40,22,40,25],[28,13,28,15],[29,13,29,15],[30,16,30,25],[9,14,9,25],[8,14,8,19],[8,20,8,25],[20,2,20,11],[20,15,20,24],[22,2,22,11],[22,15,22,24],[31,13,33,25],[33,0,33,6],[32,0,32,5],[28,24,29,24],[28,25,29,25],[28,16,29,18],[28,19,29,19],[28,20,29,20],[28,21,29,21],[28,22,29,22],[28,23,29,23],[30,0,30,3],[31,0,31,3],[28,0,29,9],[28,10,29,12],[30,4,30,5],[31,4,31,5],[30,8,31,9],[30,10,33,12],[30,6,31,7]]}
[null,null,null,null,null,null,null,null,null,null,null,null,null,null,null,null,null,null,null,null,null,null,"（様式 １ ）"]
[]
[null,null,null,null,null,null,null,null,null,null,null,"支援事業認定申請書"]
[null,null,null,null,null,null,null,null,null,null,null,null,null,null,null,null,null,null,null,null,{"$f":"施工承認申請書類!C16","v":"00:00:00"}]
[]
["　神戸市長　あて"]
[]
[null,null,null,null,null,null,null,null,null,"申請者",null,null,"住所",null,{"$f":"施工承認申請書類!C28","v":0}]
[null,null,null,null,null,null,null,null,null,null,null,null,"氏名",null,{"$f":"施工承認申請書類!C26","v":0},null,null,null,null,null,{"$f":"施工承認申請書類!C27","v":0}]
[null,null,null,null,null,null,null,null,null,null,null,null,"電話",null,{"$f":"施工承認申請書類!C29","v":0}]
[]
["　公共下水道（取付管・接続ます）改善への支援事業実施要綱第3条第1項に基づき事業の認定"]
["を申請をします。"]
[]
["【給付金入金口座情報】"]
[]
["　給付金の受領を委任する場合は、次の欄に記載してください。"]
[]
["　受任者",null,null,null,null,null,null,null,null,null,null,null,null,"委任者"]
[]
["住所",null,{"$f":"IF(支援事業認定申請書類!C27=\"\",\"\",支援事業認定申請書類!C27)","v":""},null,null,null,null,null,null,null,null,null,null,"住所",null,{"$f":"IF(支援事業認定申請書類!C29=\"\",\"\",支援事業認定申請書類!C29)","v":""}]
[]
["氏名",null,{"$f":"IF(支援事業認定申請書類!C28=\"\",\"\",支援事業認定申請書類!C28)","v":""},null,null,null,null,null,null,null,null,null,null,"氏名",null,{"$f":"IF(支援事業認定申請書類!C30=\"\",\"\",支援事業認定申請書類!C30)","v":""}]
[]
["給付金は、下記の預金口座に口座振込の方法により決済してください。"]
["ただし、下記の事項を承認いたします。"]
[]
[]
["振込先金融機関",null,null,null,null,null,null,null,null,null,"預金種目",null,null,{"$f":"支援事業認定申請書類!C20","v":0},null,null,"口座番号",null,null,{"$f":"IF(支援事業認定申請書類!C22=\"\",\"\",支援事業認定申請書類!C22)","v":""},{"$f":"IF(支援事業認定申請書類!E22=\"\",\"\",支援事業認定申請書類!E22)","v":""},{"$f":"IF(支援事業認定申請書類!G22=\"\",\"\",支援事業認定申請書類!G22)","v":""},{"$f":"IF(支援事業認定申請書類!I22=\"\",\"\",支援事業認定申請書類!I22)","v":""},{"$f":"IF(支援事業認定申請書類!K22=\"\",\"\",支援事業認定申請書類!K22)","v":""},{"$f":"IF(支援事業認定申請書類!M22=\"\",\"\",支援事業認定申請書類!M22)","v":""},{"$f":"IF(支援事業認定申請書類!O22=\"\",\"\",支援事業認定申請書類!O22)","v":""}]
[null,null,null,null,null,null,null,null,null,null,null,null,null,{"$f":"IF(支援事業認定申請書類!C21=\"\",\"\",支援事業認定申請書類!C21)","v":""}]
[{"$f":"IF(支援事業認定申請書類!C15=\"\",\"\",支援事業認定申請書類!C15)","v":""},null,null,null,"銀行",null,{"$f":"支援事業認定申請書類!C17","v":0},null,"支店",null,"口座名義",null,null,"フリガナ",null,null,{"$f":"支援事業認定申請書類!C24","v":0}]
[{"$f":"IF(支援事業認定申請書類!C16=\"\",\"\",支援事業認定申請書類!C16)","v":""},null,null,null,"金庫",null,null,null,null,null,null,null,null,{"$f":"支援事業認定申請書類!C23","v":0}]
["金融機関コード",null,null,null,null,null,{"$f":"IF(支援事業認定申請書類!C18=\"\",\"\",支援事業認定申請書類!C18)","v":""},{"$f":"IF(支援事業認定申請書類!E18=\"\",\"\",支援事業認定申請書類!E18)","v":""},{"$f":"IF(支援事業認定申請書類!G18=\"\",\"\",支援事業認定申請書類!G18)","v":""},{"$f":"IF(支援事業認定申請書類!I18=\"\",\"\",支援事業認定申請書類!I18)","v":""}]
["支店コード",null,null,null,null,null,null,{"$f":"IF(支援事業認定申請書類!C19=\"\",\"\",支援事業認定申請書類!C19)","v":""},{"$f":"IF(支援事業認定申請書類!E19=\"\",\"\",支援事業認定申請書類!E19)","v":""},{"$f":"IF(支援事業認定申請書類!G19=\"\",\"\",支援事業認定申請書類!G19)","v":""}]
[]
["１　貴市の口座振込手続き完了をもって当方は受領したものと認め、あらためて領収証は発行いたしません。"]
["２　上記について万一事故が生じた場合は、当方において一切の責任を負い貴市にはご迷惑をおかけいたしません。"]
["３　上記の請求代金に対し、振込手数料を必要とする場合は、当方が受領する金額から差引きされても異議ありません。"]
[]
[]
[null,null,null,null,null,null,null,null,null,null,null,null,null,null,null,null,null,null,null,"区"]
[null,null,null,null,null,null,null,null,null,null,null,null,null,null,null,null,null,null,null,null,null,null,"神戸市記入欄"]

{"sheet":"⑨見積書","index":18,"n_rows":27,"n_cols":10,"rows_kept":27,"cut":false,"hidden":false,"merged":[[0,0,0,9],[1,0,1,9],[5,5,5,9],[8,0,8,1],[8,2,8,8],[6,5,6,6],[6,7,6,9],[11,1,11,2],[12,1,12,2],[12,5,12,9],[13,1,15,2],[13,4,13,9],[14,3,15,3],[14,4,15,9],[12,3,12,4],[11,5,11,9],[18,0,18,4],[18,6,18,8],[19,0,19,4],[19,6,19,8],[20,0,20,4],[20,6,20,8],[21,0,21,4],[21,6,21,8],[22,0,22,4],[22,6,22,8],[23,0,23,4],[23,6,23,8],[24,0,24,4],[24,6,24,8],[25,0,25,4],[25,6,25,8],[26,0,26,4],[26,6,26,8]]}
["見　　積　　書"]
[{"$f":"施工承認申請書類!C16","v":"00:00:00"}]
[]
["神戸市長 あて"]
[]
[null,null,null,null,"住所",{"$f":"施工承認申請書類!C28","v":0}]
[null,null,null,null,"氏名",{"$f":"施工承認申請書類!C26","v":0},null,{"$f":"施工承認申請書類!C27","v":0}]
["つぎのとおり見積りいたします。"]
["見積金額",null,{"$f":"G27","v":0},null,null,null,null,null,null,"円"]
[]
[]
[null,"工事場所",null,"神戸市",{"$f":"施工承認申請書類!C23","v":0},{"$f":"施工承認申請書類!E23","v":0}]
[null,"調査番号",null,{"$f":"施工承認申請書類!C23","v":0},null,{"$f":"支援事業認定申請書類!E8","v":0}]
[null,"申請者",null,"住所",{"$f":"施工承認申請書類!C18","v":0}]
[null,null,null,"氏名",{"$f":"施工承認申請書類!C19","v":0}]
[]
[]
[]
["件名",null,null,null,null,"数量","金額",null,null,"備考"]
["ます・取付管改築工事費",null,null,null,null,"１式",{"$f":"支援事業認定申請書類!C9","v":0}]
["舗装復旧費",null,null,null,null,"１式",{"$f":"支援事業認定申請書類!C10","v":0}]
[]
["計",null,null,null,null,null,{"$f":"SUM(G20:G21)","v":0}]
[]
["消費税",null,null,null,null,null,{"$f":"G23*0.1","v":0}]
[]
["合　計",null,null,null,null,null,{"$f":"G23+G25","v":0}]

{"sheet":"⑩掘削申請記入様式","index":19,"n_rows":42,"n_cols":11,"rows_kept":42,"cut":false,"hidden":true,"merged":[[7,0,12,0],[7,4,12,4],[7,6,7,7],[8,6,8,7],[9,6,9,7],[0,0,0,7],[0,8,0,9],[1,8,2,9],[2,0,3,3],[2,4,2,5],[2,6,2,7],[16,10,16,11],[10,2,10,3],[10,6,10,7],[11,2,11,3],[11,6,11,7],[12,6,12,7],[13,1,13,9],[4,1,6,1],[4,2,6,4],[4,6,4,8],[5,5,6,5],[5,6,6,8],[17,1,17,3],[17,5,17,6],[17,8,17,9],[18,1,18,3],[18,5,18,6],[18,8,18,9],[14,0,15,0],[14,1,14,6],[14,7,15,9],[15,1,15,6],[16,1,16,9],[19,0,26,0],[19,3,19,4],[19,5,19,6],[19,8,19,9],[20,3,20,4],[20,5,20,6],[20,8,20,9],[21,3,21,4],[21,5,21,6],[21,8,21,9],[24,3,24,4],[24,5,24,6],[24,8,24,9],[25,3,25,4],[25,5,25,6],[25,8,25,9],[22,3,22,4],[22,5,22,6],[22,8,22,9],[23,3,23,4],[23,5,23,6],[23,8,23,9],[26,3,26,4],[26,5,26,6],[26,8,26,9],[27,2,27,3],[27,4,27,5],[27,6,27,7],[27,9,27,10],[28,2,28,3],[28,4,28,5],[30,9,30,10],[31,2,31,3],[31,4,31,5],[31,6,31,7],[31,9,31,10],[27,0,32,0],[34,6,34,7],[35,2,35,3],[35,4,35,5],[35,6,35,7],[32,2,32,3],[28,6,28,7],[28,9,28,10],[29,2,29,3],[29,4,29,5],[29,6,29,7],[29,9,29,10],[33,0,38,0],[33,2,33,3],[33,4,33,5],[33,6,33,7],[34,2,34,3],[34,4,34,5],[30,2,30,3],[30,4,30,5],[30,6,30,7],[36,2,36,3],[36,4,36,5],[36,6,36,7],[32,4,32,5],[32,6,32,7],[39,2,39,7],[42,2,42,4],[42,6,42,9],[43,2,43,4],[43,6,43,9],[44,2,44,4],[44,6,44,9],[37,2,37,3],[37,4,37,5],[37,6,37,7],[38,2,38,3],[38,4,38,5],[38,6,38,7],[32,9,32,10]]}
["下水道取付管承認願い用掘削申請書　記入様式"]
[null,null,null,null,null,null,null,null,"神戸市道用"]
[null,null,null,null,null,null,"申請者記入欄"]
[]
[null,"作成者",null,null,null,"℡"]
[null,null,null,null,null,"許可書送付FAX"]
[]
[null,null,"東部建設事務所",null,"所管警察署",null,"東灘署",null,null,"長田署"]
[null,null,"中部建設事務所",null,null,null,"灘署",null,null,"須磨署"]
[null,null,"西部建設事務所",null,null,null,"葺合署",null,null,"神戸西署"]
[null,null,"西建設事務所",null,null,null,"生田署",null,null,"神戸北署"]
[null,null,"北建設事務所",null,null,null,"神戸水上署",null,null,"有馬署"]
[null,null,"垂水建設事務所",null,null,null,"兵庫署",null,null,"垂水署"]
["工事（占用）\n場所"]
["工事の時期","自　　　令和　　　　年　　　　　月　　　　　日",null,null,null,null,null,"　　　　　※提出日より21日以後とする（年末年始、ゴールデンウィーク時は別途相談すること）"]
[null,"至　　　令和　　　　年　　　　　月　　　　　日"]
["道路の復旧方法","□申請者　□他企業　□道路法２４条申請（建築業者）　□　その他"]
["掘削業者",null,null,null,"監督責任者",null,null,"電　　話"]
["復旧業者",null,null,null,"監督責任者",null,null,"電　　話"]
["掘削内訳","場所","掘削延長","掘削幅",null,"実掘面積",null,"影響面積","舗装復旧工種",null,"新舗装"]
[null,null,"m","m",null,"㎡",null,"㎡","号工"]
[null,null,"m","m",null,"㎡",null,"㎡","号工"]
[null,null,"m","m",null,"㎡",null,"㎡","号工"]
[null,null,"m","m",null,"㎡",null,"㎡","号工"]
[null,null,"m","m",null,"㎡",null,"㎡","号工"]
[null,null,"m","m",null,"㎡",null,"㎡","号工"]
[null,"計","m","（最大）　　　m",null,"㎡"]
["占用内訳","場所","占用物",null,"占用管径",null,"占用延長",null,"個数","占用位置"]
[null,null,"人孔・ます・取付管",null,"ｍｍ",null,"ｍ",null,null,"歩道・車道・その他"]
[null,null,"人孔・ます・取付管",null,"ｍｍ",null,"ｍ",null,null,"歩道・車道・その他"]
[null,null,"人孔・ます・取付管",null,"ｍｍ",null,"ｍ",null,null,"歩道・車道・その他"]
[null,null,"人孔・ます・取付管",null,"ｍｍ",null,"ｍ",null,null,"歩道・車道・その他"]
[null,null,"人孔・ます・取付管",null,"ｍｍ",null,"ｍ",null,null,"歩道・車道・その他"]
["撤去内訳","場所","撤去物",null,"撤去管径",null,"撤去延長",null,"個数"]
[null,null,"人孔・ます・取付管",null,"ｍｍ",null,"ｍ"]
[null,null,"人孔・ます・取付管",null,"ｍｍ",null,"ｍ"]
[null,null,"人孔・ます・取付管",null,"ｍｍ",null,"ｍ"]
[null,null,"人孔・ます・取付管",null,"ｍｍ",null,"ｍ"]
[null,null,"人孔・ます・取付管",null,"ｍｍ",null,"ｍ"]
[]
["※延長や面積などは小数点以下2桁目を四捨五入し、小数点以下１桁となるように記入してください。"]
["※舗装工種が不明な場合は、所管建設事務所で確認してください。"]

{"sheet":"⑩道路占用許可申請依頼書 ","index":20,"n_rows":52,"n_cols":9,"rows_kept":52,"cut":false,"hidden":false,"merged":[[47,2,47,8],[51,2,51,8],[10,4,10,5],[10,7,10,8],[12,7,12,8],[14,1,14,8],[15,1,15,8],[16,1,16,8],[17,1,17,8],[42,2,42,3],[43,2,43,3],[42,4,42,8],[43,4,43,8],[3,0,3,8],[35,4,35,8],[37,4,37,7],[24,2,24,3],[24,4,24,8],[6,7,6,8],[11,7,11,8],[20,0,20,8],[28,4,28,8],[30,4,30,7]]}
[]
[]
[]
["道 路 占 用 許 可 申 請 依 頼 書 "]
[]
[]
[null,null,null,null,null,null,null,{"$f":"施工承認申請書類!C16","v":"00:00:00"}]
[]
[null,"神 戸 市 長","あて"]
[]
[null,null,null,null,"申請者又は受任者",null,"住 所",{"$f":"施工承認申請書類!C28","v":0}]
[null,null,null,null,null,null,null,{"$f":"施工承認申請書類!C26","v":0}]
[null,null,null,null,null,null,"氏 名",{"$f":"施工承認申請書類!C27","v":0}]
[]
[null,"　この度、下記工事場所において、家屋の新築・改築に伴い、取付管・接続ます工事施工"]
[null,"承認申請を行なっております。"]
[null,"　つきましては、必要書類を準備しましたので、神戸市公共下水道管理者より道路管理者"]
[null,"への道路占用許可申請を依頼いたします。"]
[null,"　また、許可後は道路占用許可条件を遵守する事を確約いたします。"]
[]
["記"]
[]
[null,"１．工 事 場 所                "]
[]
[null,null,{"$f":"施工承認申請書類!C23","v":0},null,{"$f":"施工承認申請書類!E23","v":0}]
[]
[null,"２．管 工 事 施 工 者              "]
[]
[null,null,"住　　所",null,{"$f":"施工承認申請書類!C34","v":0}]
[]
[null,null,"名　　称",null,{"$f":"施工承認申請書類!C33","v":0}]
[null,null,null,null,null,null,null,"TEL",{"$f":"施工承認申請書類!C35","v":0}]
[]
[null,"３．舗装復旧工事施工者   (他工事で復旧する場合はその業者を記入すること）        "]
[]
[null,null,"住　　所",null,{"$f":"施工承認申請書類!C39","v":0}]
[]
[null,null,"名　　称",null,{"$f":"施工承認申請書類!C38","v":0}]
[null,null,null,null,null,null,null,"TEL",{"$f":"施工承認申請書類!C40","v":0}]
[]
[null,"４．許可証送付用ＦＡＸ番号、Eメールアドレス"]
[]
[null,null,"FAX：",null,{"$f":"道路掘削申請書類!C21","v":0}]
[null,null,"Eメール：",null,{"$f":"道路掘削申請書類!C22","v":0}]
[]
[null,"５．所管建設事務所"]
[]
[null,null,{"$f":"道路掘削申請書類!C23","v":0}]
[]
[null,"６．所管警察署"]
[]
[null,null,{"$f":"道路掘削申請書類!C24","v":0}]

{"sheet":"⑩´公共下水道工事に関する承諾報告書","index":21,"n_rows":19,"n_cols":8,"rows_kept":19,"cut":false,"hidden":false,"merged":[[23,1,23,8],[5,5,6,5],[5,6,5,7],[0,0,0,8],[6,6,6,7],[9,2,10,7],[13,2,13,4],[13,5,13,6],[14,2,14,4],[14,5,14,6]]}
["公共下水道工事に関する承諾報告書"]
[]
[null,null,null,null,null,null,null,{"$f":"施工承認申請書類!C16","v":"00:00:00"}]
[]
[null,"神戸市長あて"]
[null,null,null,null,null,"報告者",{"$f":"道路掘削申請書類!C46","v":0}]
[null,null,null,null,null,null,{"$f":"道路掘削申請書類!C47","v":0}]
[]
[]
[null,null,"施工場所の土地所有者より以下のとおり承諾を得ましたので報告します。\n"]
[]
[]
[null,"１．承諾者（土地所有者）"]
[null,null,"住  所",null,null,"氏　名",null,"承諾日"]
[null,null,{"$f":"道路掘削申請書類!C48","v":0},null,null,{"$f":"道路掘削申請書類!C49","v":0},null,{"$f":"道路掘削申請書類!C50","v":"00:00:00"}]
[]
[null,"２．承諾内容"]
[null,null,"・所有地において公共下水道（取付管・接続ます）工事を実施すること"]
[null,null,"・工事中の土地使用料は無償とすること"]

{"sheet":"⑪引込工事調整結果報告書","index":22,"n_rows":47,"n_cols":15,"rows_kept":47,"cut":false,"hidden":false,"merged":[[16,7,17,9],[18,7,18,9],[19,7,19,9],[20,7,21,9],[19,11,22,13],[19,10,22,10],[22,7,22,9],[0,1,0,11],[2,11,2,14],[3,11,3,14],[4,11,4,14],[12,2,13,2],[10,2,10,3],[10,4,10,6],[11,11,14,13],[10,11,10,13],[10,7,10,9],[11,7,11,9],[12,7,13,9],[14,7,14,9],[12,3,13,3],[9,0,10,0],[9,1,10,1],[9,2,9,9],[9,10,10,10],[9,11,9,14],[14,17,15,17],[15,0,18,0],[15,1,18,1],[15,10,18,10],[15,14,18,14],[16,2,17,2],[11,0,14,0],[11,1,14,1],[11,10,14,10],[11,14,14,14],[16,17,17,17],[12,4,13,6],[16,4,17,6],[16,3,17,3],[15,11,18,13],[15,7,15,9],[29,18,29,20],[32,11,32,14],[38,0,38,2],[34,0,36,3],[35,7,35,13],[31,6,31,10],[32,6,32,10],[33,8,33,10],[31,13,31,14],[29,12,29,14],[30,13,30,14],[27,0,33,3],[27,9,27,10],[27,12,27,14],[46,0,46,14],[47,0,47,14],[48,0,48,14],[49,0,49,14],[40,0,40,14],[41,0,41,14],[42,0,42,14],[43,0,43,14],[44,0,44,14],[45,0,45,14],[39,0,39,14],[28,12,28,14],[26,8,26,14],[20,3,21,3],[23,0,24,3],[25,0,26,3],[19,0,22,0],[20,2,21,2],[19,14,22,14],[23,8,23,14],[24,8,24,14],[25,6,25,10],[25,11,25,14],[20,4,21,6],[19,1,22,1]]}
[null,"　　　　引　込　工　事　調　整　結　果　報　告　書"]
[]
[null,null,null,null,null,null,null,null,null,null,"事業者名  　",{"$f":"道路掘削申請書類!C18","v":0}]
[null,null,null,null,null,null,null,null,"作成者；",null,"氏　　名　　　　",{"$f":"道路掘削申請書類!C19","v":0}]
[null,null,null,null,null,null,null,null,null,null,"電話番号　　",{"$f":"道路掘削申請書類!C20","v":0}]
[]
[null,"施工場所：",{"$f":"施工承認申請書類!C23","v":0},null,{"$f":"施工承認申請書類!E23","v":0}]
[null,null,null,null,null,null,null,null,null,null,"（住宅地図",{"$f":"施工承認申請書類!C24","v":0},null,null,"）"]
[]
["種別","事業者名","工事内容",null,null,null,null,null,null,null,"施工者名","連絡先"]
[null,null,"歩車別",null,"管径ｍｍ",null,null,"工　期",null,null,null,"氏　名",null,null,"電話番号"]
["水　道","神戸市水道局\n配水課",{"$f":"道路掘削申請書類!C28","v":"□"},"歩　道","φ",{"$f":"道路掘削申請書類!F28","v":0},"mm",{"$f":"道路掘削申請書類!L28","v":"00:00:00"},null,null,{"$f":"道路掘削申請書類!O28","v":0},{"$f":"道路掘削申請書類!Q28","v":0},null,null,{"$f":"道路掘削申請書類!S28","v":0}]
[null,null,{"$f":"道路掘削申請書類!C29","v":"□"},"車　道",{"$f":"道路掘削申請書類!H28","v":0},null,null,"～"]
[]
[null,null,{"$f":"道路掘削申請書類!C30","v":"□"},"歩車道","L=",{"$f":"道路掘削申請書類!J28","v":0},"m",{"$f":"道路掘削申請書類!L30","v":"00:00:00"}]
["下水道","神戸市建設局\n下水道部管路課　　　",{"$f":"道路掘削申請書類!C31","v":"□"},"歩　道","φ",{"$f":"道路掘削申請書類!F31","v":0},"mm",{"$f":"道路掘削申請書類!L31","v":"00:00:00"},null,null,{"$f":"道路掘削申請書類!O31","v":0},{"$f":"道路掘削申請書類!Q31","v":0},null,null,{"$f":"道路掘削申請書類!S31","v":0}]
[null,null,{"$f":"道路掘削申請書類!C32","v":"□"},"車　道",{"$f":"道路掘削申請書類!H31","v":0},null,null,"～"]
[]
[null,null,{"$f":"道路掘削申請書類!C33","v":"□"},"歩車道","L=",{"$f":"道路掘削申請書類!J31","v":0},"m",{"$f":"道路掘削申請書類!L33","v":"00:00:00"}]
["ガ　ス","大阪ガス㈱",{"$f":"道路掘削申請書類!C34","v":"□"},"歩　道","φ",{"$f":"道路掘削申請書類!F34","v":0},"mm",{"$f":"道路掘削申請書類!L34","v":"00:00:00"},null,null,{"$f":"道路掘削申請書類!O34","v":0},{"$f":"道路掘削申請書類!Q34","v":0},null,null,{"$f":"道路掘削申請書類!S34","v":0}]
[null,null,{"$f":"道路掘削申請書類!C35","v":"□"},"車　道",{"$f":"道路掘削申請書類!H34","v":0},null,null,"～"]
[]
[null,null,{"$f":"道路掘削申請書類!C36","v":"□"},"歩車道","L=",{"$f":"道路掘削申請書類!J34","v":0},"m",{"$f":"道路掘削申請書類!L36","v":"00:00:00"}]
["　工事の手待ちの有・無",null,null,null,null,{"$f":"道路掘削申請書類!E37","v":"□"},"有",null,{"$f":"道路掘削申請書類!H37","v":0}]
[null,null,null,null,null,{"$f":"道路掘削申請書類!C37","v":"□"},"無"]
["　全体工事の調整事業者名",null,null,null,null,null,{"$f":"道路掘削申請書類!G38","v":0},null,null,null,null,{"$f":"道路掘削申請書類!G39","v":0}]
[null,null,null,null,null,null,"電話番号",null,{"$f":"道路掘削申請書類!C40","v":0}]
["　舗装復旧事業者名",null,null,null,null,{"$f":"施工承認申請書類!C45","v":"□"},"水道",null,null,null,null,{"$f":"道路掘削申請書類!C41","v":"□"},"単独"]
[null,null,null,null,null,"■","下水",null,null,null,null,{"$f":"道路掘削申請書類!G41","v":"□"},"事前協議済"]
[null,null,null,null,null,{"$f":"施工承認申請書類!E45","v":"□"},"大阪ガス",null,null,null,null,{"$f":"道路掘削申請書類!K41","v":"□"},"協議の上復旧業者決定"]
[null,null,null,null,null,{"$f":"道路掘削申請書類!C42","v":"□"},"水道局舗装復旧業者名",null,null,null,null,"担当者",null,{"$f":"道路掘削申請書類!G43","v":0}]
[null,null,null,null,null,{"$f":"道路掘削申請書類!G42","v":"□"},"下水道部管路課舗装復旧業者名　",null,null,null,null,"　　",null,{"$f":"道路掘削申請書類!G44","v":0}]
[null,null,null,null,null,{"$f":"道路掘削申請書類!K42","v":"□"},"大阪ガス舗装復旧業者名",null,null,null,null,"で復旧します。"]
[null,null,null,null,null,{"$f":"道路掘削申請書類!O42","v":"□"},"その他　　（",null,{"$f":"道路掘削申請書類!Q42","v":0},null,null,"）"]
["　備考（施主等）",null,null,null,null,"※","依頼者"]
[null,null,null,null,null,null,null,{"$f":"施工承認申請書類!C19","v":0}]
[null,null,null,null,null,null,"電話番号",null,null,{"$f":"施工承認申請書類!C20","v":0}]
[]
["※作成にあたっての注意事項"]
[]
["ア．工事の手待ちの有・無　・・・・　各工事間の工期を調整し、手待ちが無いようにすること。"]
["　　　　　　　　　　　　　　　手待ちが生じる場合は、理由を記入すること。"]
["　イ．全体工事の調整事業者 ・・・・　原則として、先行事業者により全体工事の調整を行うこと。"]
["　　　　　　　　　　　　　　　　　　　　　　　　但し、事前着工している工事がある場合は、未着工工事間で"]
["　　　　　　　代表者を決定し、調整を行うこと。"]
["　　　ウ．舗装復旧事業者名　・・・・・・・　原則として、舗装復旧は全工事完了後に一括施工とすること。"]
["          　  　　   エ．施工者名  ・・・・・・・・・・・・・・・　 各工事施工者名を記入すること。"]

{"sheet":"⑫引込計画平面図","index":23,"n_rows":9,"n_cols":5,"rows_kept":9,"cut":false,"hidden":false,"merged":[[0,0,0,2],[2,2,2,6],[5,2,5,7],[6,2,6,7],[4,2,4,3],[4,4,4,7]]}
[]
[]
[null,null,"引 込 計 画 平 面 図"]
[]
["施工場所　　",null,{"$f":"施工承認申請書類!C23","v":0},null,{"$f":"施工承認申請書類!E23","v":0}]
["施　　主",null,{"$f":"施工承認申請書類!C19","v":0}]
["施工業者",null,{"$f":"施工承認申請書類!C33","v":0}]
["工　　種　　　　  　下水道引込み　　　　　水道引込み　　　　　ガス引込み"]
["　    　　　　　　　（茶色）　　　　    　（青色）　　　 　　（緑色）"]

{"sheet":"⑬変更申請","index":24,"n_rows":69,"n_cols":65,"rows_kept":69,"cut":false,"hidden":false,"merged":[[44,5,50,12],[44,13,50,64],[51,5,58,12],[68,46,70,50],[68,51,70,55],[68,56,70,60],[68,61,70,64],[60,64,61,64],[65,8,66,63],[67,22,67,38],[67,42,67,45],[67,46,67,50],[67,51,67,55],[67,56,67,60],[67,61,67,64],[60,46,61,50],[60,59,61,63],[52,14,54,14],[55,38,57,62],[52,15,54,19],[55,14,57,14],[55,15,57,34],[52,20,54,21],[52,22,54,26],[52,43,54,64],[55,36,57,37],[52,27,54,28],[52,29,54,37],[52,38,54,38],[52,39,54,41],[52,42,54,42],[68,22,68,38],[68,42,70,45],[60,51,61,55],[60,56,61,56],[60,57,61,58],[24,42,25,48],[24,49,25,64],[34,39,34,64],[35,13,43,38],[35,39,43,64],[21,5,25,8],[21,9,23,12],[21,13,23,19],[21,20,23,41],[24,9,25,12],[24,13,25,19],[24,20,25,41],[13,68,13,72],[15,9,16,36],[17,9,18,13],[17,14,18,36],[21,49,23,64],[19,45,20,50],[21,42,23,48],[1,5,1,16],[7,5,8,16],[13,5,20,8],[13,9,14,13],[13,14,14,36],[19,9,20,36],[2,11,3,28],[2,29,3,33],[2,34,3,58],[6,49,6,61],[17,46,18,63],[15,46,16,50],[15,51,16,63],[19,51,20,64],[13,37,20,44],[13,45,14,64],[30,5,33,12],[30,13,33,64],[34,5,43,12],[34,13,34,38],[27,36,29,37],[27,30,29,35],[27,52,29,64],[27,44,29,51],[27,5,29,12],[27,38,29,43],[27,13,29,23],[27,24,29,29]]}
[]
[]
[null,null,null,null,null,null,null,null,null,null,null,"取 付 管 ・ 接 続 ま す",null,null,null,null,null,null,null,null,null,null,null,null,null,null,null,null,null,{"$f":"変更申請書類!C8","v":"00:00:00"},null,null,null,null,"工 事 施 工 承 認 申 請 書 (変更) "]
[]
[]
[]
[null,null,null,null,null,null,null,null,null,null,null,null,null,null,null,null,null,null,null,null,null,null,null,null,null,null,null,null,null,null,null,null,null,null,null,null,null,null,null,null,null,null,null,null,null,null,null,null,null,{"$f":"変更申請書類!C9","v":"00:00:00"}]
[null,null,null,null,null,"神 戸 市 長　 あて"]
[]
[]
[null,null,null,null,null," 下記のとおり下水道法第１６条の規定により、取付管・接続ます",null,null,null,null,null,null,null,null,null,null,null,null,null,null,null,null,null,null,null,null,null,null,null,null,null,null,null,null,null,null,null,null,null,{"$f":"変更申請書類!C8","v":"00:00:00"},null,null,"工事（変更）を申請します。"]
[null,null,null,null,null,"なお、工事完成後の公共下水道施設は完了検査合格後、無償にて市に帰属することを承諾します。　"]
[]
[null,null,null,null,null,"申\n 　\n請　\n\n者",null,null,null,"住　　所",null,null,null,null,{"$f":"変更申請書類!C10","v":0},null,null,null,null,null,null,null,null,null,null,null,null,null,null,null,null,null,null,null,null,null,null,null,null,null,null,null,null,null,null,"接続ます設置場所"]
[]
[null,null,null,null,null,null,null,null,null,{"$f":"変更申請書類!C11","v":0},null,null,null,null,null,null,null,null,null,null,null,null,null,null,null,null,null,null,null,null,null,null,null,null,null,null,null,null,null,null,null,null,null,null,null,null,"神戸市",null,null,null,null,{"$f":"変更申請書類!C14","v":0}]
[]
[null,null,null,null,null,null,null,null,null,"\n氏　　名\n",null,null,null,null,null,null,null,null,null,null,null,null,null,null,null,null,null,null,null,null,null,null,null,null,null,null,null,null,null,null,null,null,null,null,null,null,{"$f":"変更申請書類!E14","v":0}]
[]
[null,null,null,null,null,null,null,null,null,{"$f":"変更申請書類!C12","v":0},null,null,null,null,null,null,null,null,null,null,null,null,null,null,null,null,null,null,null,null,null,null,null,null,null,null,null,null,null,null,null,null,null,null,null,"住宅地図",null,null,null,null,null,{"$f":"変更申請書類!C15","v":0}]
[]
[null,null,null,null,null,"受　 \n任　 \n者",null,null,null,"指定\n番号",null,null,null,"受 任 者 名",null,null,null,null,null,null,{"$f":"変更申請書類!C17","v":0},null,null,null,null,null,null,null,null,null,null,null,null,null,null,null,null,null,null,null,null,null,"責任技術者名",null,null,null,null,null,null,{"$f":"変更申請書類!C21","v":0}]
[]
[]
[null,null,null,null,null,null,null,null,null,{"$f":"変更申請書類!C16","v":0},null,null,null,"電 話 番 号",null,null,null,null,null,null,{"$f":"変更申請書類!C20","v":0},null,null,null,null,null,null,null,null,null,null,null,null,null,null,null,null,null,null,null,null,null,"携帯電話番号",null,null,null,null,null,null,{"$f":"変更申請書類!C22","v":0}]
[]
[]
[null,null,null,null,null,"承認番号",null,null,null,null,null,null,null,{"$f":"変更申請書類!E23","v":"00:00:00"},null,null,null,null,null,null,null,null,null,null,"神建下管第",null,null,null,null,null,{"$f":"変更申請書類!K23","v":0},null,null,null,null,null,"号",null,"管理番号",null,null,null,null,null,{"$f":"変更申請書類!C14","v":0},null,null,null,null,null,null,null,{"$f":"変更申請書類!E24","v":0}]
[]
[]
[null,null,null,null,null,"変更事項",null,null,null,null,null,null,null,{"$f":"変更申請書類!C25","v":0}]
[]
[]
[]
[null,null,null,null,null,"変更内容",null,null,null,null,null,null,null,"変 更 前",null,null,null,null,null,null,null,null,null,null,null,null,null,null,null,null,null,null,null,null,null,null,null,null,null,"変 更 後"]
[null,null,null,null,null,null,null,null,null,null,null,null,null,{"$f":"変更申請書類!E26","v":0},null,null,null,null,null,null,null,null,null,null,null,null,null,null,null,null,null,null,null,null,null,null,null,null,null,{"$f":"変更申請書類!E27","v":0}]
[]
[]
[]
[]
[]
[]
[]
[]
[null,null,null,null,null,"変更理由",null,null,null,null,null,null,null,{"$f":"変更申請書類!C28","v":0}]
[]
[]
[]
[]
[]
[]
[null,null,null,null,null,"添付資料\n(変更分のみ)"]
[null,null,null,null,null,null,null,null,null,null,null,null,null,null,{"$f":"変更申請書類!C31","v":"□"},"委任状",null,null,null,null,{"$f":"変更申請書類!E31","v":"□"},null,"位置図",null,null,null,null,{"$f":"変更申請書類!G31","v":"□"},null,"平面図・横断図",null,null,null,null,null,null,null,null,{"$f":"変更申請書類!K31","v":"□"},"写真",null,null,{"$f":"変更申請書類!M31","v":"□"},"下水道台帳図（本管・取付管説明図各１枚）"]
[]
[]
[null,null,null,null,null,null,null,null,null,null,null,null,null,null,{"$f":"変更申請書類!C32","v":"□"},"道路占用許可申請関係書類【公道部】",null,null,null,null,null,null,null,null,null,null,null,null,null,null,null,null,null,null,null,null,{"$f":"変更申請書類!K32","v":"□"},null,"公共下水道工事に関する私道承諾報告書【私道部】"]
[]
[]
[]
[]
[null,null,null,null,null,null,null,null,null,null,null,null,null,null,"※本申請書は、変更に係る工事着手の２１日前までに提出してください。",null,null,null,null,null,null,null,null,null,null,null,null,null,null,null,null,null,null,null,null,null,null,null,null,null,null,null,null,null,null,null,"管理番号",null,null,null,null,null,null,null,null,null,"区","―",null,null,null,null,null,null,"号"]
[null,null,null,null,null,null,null,null,null,null,null,null,null,null,"※記入漏れや添付資料が不足している場合は、書類を受理できないことがあります。"]
[]
[]
[]
[null,null,null,null,null,null,null,null,"　上記のとおり申請があり、書類審査の結果、適格と認め、別紙の条件を付して承認し、施工承認通知書により通知してよろしいか。（伺）"]
[]
[null,null,null,null,null,null,null,null,null,null,null,null,null,null,null,null,null,null,null,null,null,null,"神建下管第　　　　　　　　号",null,null,null,null,null,null,null,null,null,null,null,null,null,null,null,null,null,null,null,"課長",null,null,null,"担当課長",null,null,null,null,"担当係長",null,null,null,null,"担当",null,null,null,null,"担当"]
[null,null,null,null,null,null,null,null,null,null,null,null,null,null,null,null,null,null,null,null,null,null,"令和　年　　月　　日"]

{"sheet":"⑬’変更申請(副)","index":25,"n_rows":61,"n_cols":65,"rows_kept":61,"cut":false,"hidden":false,"merged":[[60,64,61,64],[52,39,54,41],[52,42,54,42],[52,43,54,64],[55,14,57,14],[55,15,57,34],[55,36,57,37],[55,38,57,62],[60,46,61,50],[60,51,61,55],[60,56,61,56],[60,57,61,58],[60,59,61,63],[44,5,50,12],[44,13,50,64],[51,5,58,12],[52,14,54,14],[52,15,54,19],[52,20,54,21],[52,22,54,26],[52,27,54,28],[52,29,54,37],[52,38,54,38],[27,44,29,51],[27,52,29,64],[30,5,33,12],[30,13,33,64],[34,5,43,12],[34,13,34,38],[34,39,34,64],[35,13,43,38],[35,39,43,64],[27,5,29,12],[27,13,29,23],[27,24,29,29],[27,30,29,35],[27,36,29,37],[27,38,29,43],[21,49,23,64],[24,9,25,12],[24,13,25,19],[24,20,25,41],[24,42,25,48],[24,49,25,64],[21,5,25,8],[21,9,23,12],[21,13,23,19],[21,20,23,41],[21,42,23,48],[13,5,20,8],[13,9,14,13],[13,14,14,36],[13,37,20,44],[13,45,14,64],[17,14,18,36],[17,46,18,63],[19,9,20,36],[19,45,20,50],[19,51,20,64],[13,68,13,72],[15,9,16,36],[15,46,16,50],[15,51,16,63],[17,9,18,13],[1,5,1,16],[2,9,3,26],[2,27,3,31],[6,49,6,61],[7,5,8,16],[2,32,3,60]]}
[]
[]
[null,null,null,null,null,null,null,null,null,"取 付 管 ・ 接 続 ま す",null,null,null,null,null,null,null,null,null,null,null,null,null,null,null,null,null,{"$f":"変更申請書類!C8","v":"00:00:00"},null,null,null,null,"工 事 施 工 承 認 申 請 書 (変更) （副）"]
[]
[]
[]
[null,null,null,null,null,null,null,null,null,null,null,null,null,null,null,null,null,null,null,null,null,null,null,null,null,null,null,null,null,null,null,null,null,null,null,null,null,null,null,null,null,null,null,null,null,null,null,null,null,{"$f":"変更申請書類!C9","v":"00:00:00"}]
[null,null,null,null,null,"神 戸 市 長　 あて"]
[]
[]
[null,null,null,null,null," 下記のとおり下水道法第１６条の規定により、取付管・接続ます",null,null,null,null,null,null,null,null,null,null,null,null,null,null,null,null,null,null,null,null,null,null,null,null,null,null,null,null,null,null,null,null,null,{"$f":"変更申請書類!C8","v":"00:00:00"},null,null,"工事（変更）を申請します。"]
[null,null,null,null,null,"なお、工事完成後の公共下水道施設は完了検査合格後、無償にて市に帰属することを承諾します。　"]
[]
[null,null,null,null,null,"申\n 　\n請　\n\n者",null,null,null,"住　　所",null,null,null,null,{"$f":"変更申請書類!C10","v":0},null,null,null,null,null,null,null,null,null,null,null,null,null,null,null,null,null,null,null,null,null,null,null,null,null,null,null,null,null,null,"接続ます設置場所"]
[]
[null,null,null,null,null,null,null,null,null,{"$f":"変更申請書類!C11","v":0},null,null,null,null,null,null,null,null,null,null,null,null,null,null,null,null,null,null,null,null,null,null,null,null,null,null,null,null,null,null,null,null,null,null,null,null,"神戸市",null,null,null,null,{"$f":"変更申請書類!C14","v":0}]
[]
[null,null,null,null,null,null,null,null,null,"\n氏　　名\n",null,null,null,null,null,null,null,null,null,null,null,null,null,null,null,null,null,null,null,null,null,null,null,null,null,null,null,null,null,null,null,null,null,null,null,null,{"$f":"変更申請書類!E14","v":0}]
[]
[null,null,null,null,null,null,null,null,null,{"$f":"変更申請書類!C12","v":0},null,null,null,null,null,null,null,null,null,null,null,null,null,null,null,null,null,null,null,null,null,null,null,null,null,null,null,null,null,null,null,null,null,null,null,"住宅地図",null,null,null,null,null,{"$f":"変更申請書類!C15","v":0}]
[]
[null,null,null,null,null,"受　 \n任　 \n者",null,null,null,"指定\n番号",null,null,null,"受 任 者 名",null,null,null,null,null,null,{"$f":"変更申請書類!C17","v":0},null,null,null,null,null,null,null,null,null,null,null,null,null,null,null,null,null,null,null,null,null,"責任技術者名",null,null,null,null,null,null,{"$f":"変更申請書類!C21","v":0}]
[]
[]
[null,null,null,null,null,null,null,null,null,{"$f":"変更申請書類!C16","v":0},null,null,null,"電 話 番 号",null,null,null,null,null,null,{"$f":"変更申請書類!C20","v":0},null,null,null,null,null,null,null,null,null,null,null,null,null,null,null,null,null,null,null,null,null,"携帯電話番号",null,null,null,null,null,null,{"$f":"変更申請書類!C22","v":0}]
[]
[]
[null,null,null,null,null,"承認番号",null,null,null,null,null,null,null,{"$f":"変更申請書類!E23","v":"00:00:00"},null,null,null,null,null,null,null,null,null,null,"神建下管第",null,null,null,null,null,{"$f":"変更申請書類!K23","v":0},null,null,null,null,null,"号",null,"管理番号",null,null,null,null,null,{"$f":"変更申請書類!C14","v":0},null,null,null,null,null,null,null,{"$f":"変更申請書類!E24","v":0}]
[]
[]
[null,null,null,null,null,"変更事項",null,null,null,null,null,null,null,{"$f":"変更申請書類!C25","v":0}]
[]
[]
[]
[null,null,null,null,null,"変更内容",null,null,null,null,null,null,null,"変 更 前",null,null,null,null,null,null,null,null,null,null,null,null,null,null,null,null,null,null,null,null,null,null,null,null,null,"変 更 後"]
[null,null,null,null,null,null,null,null,null,null,null,null,null,{"$f":"変更申請書類!E26","v":0},null,null,null,null,null,null,null,null,null,null,null,null,null,null,null,null,null,null,null,null,null,null,null,null,null,{"$f":"変更申請書類!E27","v":0}]
[]
[]
[]
[]
[]
[]
[]
[]
[null,null,null,null,null,"変更理由",null,null,null,null,null,null,null,{"$f":"変更申請書類!C28","v":0}]
[]
[]
[]
[]
[]
[]
[null,null,null,null,null,"添付資料\n(変更分のみ)"]
[null,null,null,null,null,null,null,null,null,null,null,null,null,null,{"$f":"変更申請書類!C31","v":"□"},"委任状",null,null,null,null,{"$f":"変更申請書類!E31","v":"□"},null,"位置図",null,null,null,null,{"$f":"変更申請書類!G31","v":"□"},null,"平面図・横断図",null,null,null,null,null,null,null,null,{"$f":"変更申請書類!K31","v":"□"},"写真",null,null,{"$f":"変更申請書類!M31","v":"□"},"下水道台帳図（本管・取付管説明図各１枚）"]
[]
[]
[null,null,null,null,null,null,null,null,null,null,null,null,null,null,{"$f":"変更申請書類!C32","v":"□"},"道路占用許可申請関係書類【公道部】",null,null,null,null,null,null,null,null,null,null,null,null,null,null,null,null,null,null,null,null,{"$f":"変更申請書類!K32","v":"□"},null,"公共下水道工事に関する私道承諾報告書【私道部】"]
[]
[]
[]
[]
[null,null,null,null,null,null,null,null,null,null,null,null,null,null,null,null,null,null,null,null,null,null,null,null,null,null,null,null,null,null,null,null,null,null,null,null,null,null,null,null,null,null,null,null,null,null,"管理番号",null,null,null,null,null,null,null,null,null,"区","―",null,null,null,null,null,null,"号"]

{"sheet":"⑭支援事業認定変更申請書","index":26,"n_rows":52,"n_cols":28,"rows_kept":52,"cut":false,"hidden":false,"merged":[[43,1,43,2],[41,10,41,17],[42,10,42,17],[43,10,43,12],[43,13,43,27],[1,1,1,27],[2,20,2,27],[3,2,3,9],[5,15,5,27],[6,15,6,27],[4,2,4,9],[7,15,7,27],[4,15,4,27],[44,1,44,2],[44,10,45,27],[45,1,45,3],[13,11,13,18],[16,13,16,18],[41,23,42,23],[41,24,42,24],[41,25,42,25],[41,26,42,26],[41,27,42,27],[42,3,43,4],[42,5,43,6],[43,7,45,9],[25,2,27,3],[25,4,27,27],[29,2,29,3],[30,2,30,3],[41,1,41,6],[41,7,42,9],[41,18,42,20],[41,21,42,21],[41,22,42,22],[35,17,35,27],[36,3,36,13],[35,3,35,13],[42,1,42,2],[36,17,36,27],[12,2,14,9],[15,2,17,3],[16,7,16,9],[18,2,21,3],[22,2,24,3],[18,5,18,27],[19,5,19,27],[20,5,20,27],[21,5,21,27],[22,4,22,15],[22,16,22,27],[23,4,24,15],[23,16,24,27],[13,21,13,24]]}
[]
[null,"支援事業認定変更申請書"]
[null,null,null,null,null,null,null,null,null,null,null,null,null,null,null,null,null,null,null,null,{"$f":"変更申請書類!C9","v":"00:00:00"}]
[null,null,"神戸市長　あて"]
[null,null,null,null,null,null,null,null,null,null,null,"申請者",null,"住所",null,{"$f":"変更申請書類!C19","v":0}]
[null,null,null,null,null,null,null,null,null,null,null,null,null,"氏名",null,{"$f":"変更申請書類!C17","v":0}]
[null,null,null,null,null,null,null,null,null,null,null,null,null,null,null,{"$f":"変更申請書類!C18","v":0}]
[null,null,null,null,null,null,null,null,null,null,null,null,null,"電話",null,{"$f":"変更申請書類!C20","v":0}]
[]
[null,null,"公共下水道（取付管・接続ます）改善への支援事業実施要綱第3条第2項に基づき事業の変更認定を"]
[null," 申請します。"]
[]
[null,null,"支援事業交付予定額通知書番号"]
[null,null,null,null,null,null,null,null,null,null,null,{"$f":"変更申請書類!C39","v":"00:00:00"},null,null,null,null,null,null,null,null,"第",{"$f":"変更申請書類!C40","v":0},null,null,null,"-",{"$f":"変更申請書類!F40","v":0},"号"]
[]
[null,null,"管理番号"]
[null,null,null,null,null,null,null,{"$f":"変更申請書類!C24","v":0},null,null,"区",null,null,{"$f":"変更申請書類!E24","v":0}]
[]
[null,null,"変更事項",null,{"$f":"変更申請書類!C42","v":"□"},"給付金の振込先口座の変更"]
[null,null,null,null,{"$f":"変更申請書類!C43","v":"□"},"承認工事の内容変更に伴う見積金額の変更"]
[null,null,null,null,{"$f":"変更申請書類!C44","v":"□"},"住所変更、社名変更"]
[null,null,null,null,{"$f":"変更申請書類!C45","v":"□"},{"$f":"変更申請書類!D45","v":"その他（　　　　　　　　　　　　　　　　　　）"}]
[null,null,"変更内容",null,"変更前\n\n",null,null,null,null,null,null,null,null,null,null,null,"変更後\n"]
[null,null,null,null,{"$f":"変更申請書類!E46","v":0},null,null,null,null,null,null,null,null,null,null,null,{"$f":"変更申請書類!E47","v":0}]
[]
[null,null,"変更理由",null,{"$f":"変更申請書類!C48","v":0}]
[]
[]
[]
[null,null,"添付資料",null,{"$f":"変更申請書類!C51","v":"□"},"変更見積書",null,null,null,null,{"$f":"変更申請書類!C52","v":"□"},"指定工事店証",null,null,null,null,null,{"$f":"変更申請書類!C53","v":"□"},{"$f":"変更申請書類!D53","v":"その他（　　　　　　　　　　）"}]
[null,null,"（変更分のみ）"]
[]
[null,"（以下、口座変更がない場合、記載不要です。）"]
[null,null,"給付金の受領を委任する場合は、次の欄に記載してください。"]
[null,"　受任者",null,null,null,null,null,null,null,null,null,null,null,null,"　委任者"]
[null,null,"住所",{"$f":"IF(変更申請書類!C67=\"\",\"\",変更申請書類!C67)","v":""},null,null,null,null,null,null,null,null,null,null,null,"住所",null,{"$f":"IF(変更申請書類!C69=\"\",\"\",変更申請書類!C69)","v":""}]
[null,null,"氏名",{"$f":"IF(変更申請書類!C68=\"\",\"\",変更申請書類!C68)","v":""},null,null,null,null,null,null,null,null,null,null,null,"氏名",null,{"$f":"IF(変更申請書類!C70=\"\",\"\",変更申請書類!C70)","v":""}]
[]
[null,null,"給付金は、下記の預金口座に口座振込の方法により決済してください。"]
[null,null,"ただし、下記の事項を承認いたします。"]
[]
[null,"振込先金融機関",null,null,null,null,null,"預金種目",null,null,{"$f":"IF(変更申請書類!C60=\"\",\"\",変更申請書類!C60)","v":""},null,null,null,null,null,null,null,"口座番号",null,null,{"$f":"IF(変更申請書類!C62=\"\",\"\",変更申請書類!C62)","v":""},{"$f":"IF(変更申請書類!E62=\"\",\"\",変更申請書類!E62)","v":""},{"$f":"IF(変更申請書類!G62=\"\",\"\",変更申請書類!G62)","v":""},{"$f":"IF(変更申請書類!I62=\"\",\"\",変更申請書類!I62)","v":""},{"$f":"IF(変更申請書類!K62=\"\",\"\",変更申請書類!K62)","v":""},{"$f":"IF(変更申請書類!M62=\"\",\"\",変更申請書類!M62)","v":""},{"$f":"IF(変更申請書類!O62=\"\",\"\",変更申請書類!O62)","v":""}]
[null,{"$f":"IF(変更申請書類!C55=\"\",\"\",変更申請書類!C55)&\"銀行\"","v":"銀行"},null,{"$f":"IF(変更申請書類!C57=\"\",\"\",変更申請書類!C57)","v":""},null,"支店",null,null,null,null,{"$f":"IF(変更申請書類!C61=\"\",\"\",変更申請書類!C61)","v":""}]
[null,{"$f":"IF(変更申請書類!C56=\"\",\"\",変更申請書類!C56)&\"金庫\"","v":"金庫"},null,null,null,null,null,"口座名義",null,null,"フリガナ",null,null,{"$f":"IF(変更申請書類!C64=\"\",\"\",変更申請書類!C64)","v":""}]
[null,"金融機関コード",null,{"$f":"IF(変更申請書類!C58=\"\",\"\",変更申請書類!C58)","v":""},{"$f":"IF(変更申請書類!E58=\"\",\"\",変更申請書類!E58)","v":""},{"$f":"IF(変更申請書類!G58=\"\",\"\",変更申請書類!G58)","v":""},{"$f":"IF(変更申請書類!I58=\"\",\"\",変更申請書類!I58)","v":""},null,null,null,{"$f":"IF(変更申請書類!C63=\"\",\"\",変更申請書類!C63)","v":""}]
[null,"支店コード",null,null,{"$f":"IF(変更申請書類!C59=\"\",\"\",変更申請書類!C59)","v":""},{"$f":"IF(変更申請書類!E59=\"\",\"\",変更申請書類!E59)","v":""},{"$f":"IF(変更申請書類!G59=\"\",\"\",変更申請書類!G59)","v":""}]
[null,null,"１　貴市の口座振込手続き完了をもって当方は受領したものと認め、あらためて領収証は"]
[null,null,"　発行いたしません。"]
[null,null,"２　上記について万一事故が生じた場合は、当方において一切の責任を負い貴市にはご迷"]
[null,null,"　惑をおかけいたしません。"]
[null,null,"３　上記の請求代金に対し、振込手数料を必要とする場合は、当方が受領する金額から差引"]
[null,null,"　きされても異議ありません。"]

{"sheet":"⑮変更見積書","index":27,"n_rows":27,"n_cols":10,"rows_kept":27,"cut":false,"hidden":false,"merged":[[24,0,24,4],[24,6,24,8],[25,0,25,4],[25,6,25,8],[26,0,26,4],[26,6,26,8],[21,0,21,4],[21,6,21,8],[22,0,22,4],[22,6,22,8],[23,0,23,4],[23,6,23,8],[18,0,18,4],[18,6,18,8],[19,0,19,4],[19,6,19,8],[20,0,20,4],[20,6,20,8],[11,1,11,2],[12,1,12,2],[12,5,12,9],[13,1,15,2],[13,4,13,9],[14,3,15,3],[14,4,15,9],[11,5,11,9],[12,3,12,4],[0,0,0,9],[1,0,1,9],[4,5,4,9],[7,0,7,1],[7,2,7,8],[5,5,5,6],[5,7,5,9]]}
["変　　更　　見　　積　　書"]
[{"$f":"変更申請書類!C9","v":"00:00:00"}]
[]
["神戸市長 あて"]
[null,null,null,null,"住所",{"$f":"変更申請書類!C19","v":0}]
[null,null,null,null,"氏名",{"$f":"変更申請書類!C17","v":0},null,{"$f":"変更申請書類!C18","v":0}]
["つぎのとおり見積りいたします。"]
["見積金額",null,{"$f":"G27","v":0},null,null,null,null,null,null,"円"]
[]
[]
[]
[null,"工事場所",null,"神戸市",{"$f":"変更申請書類!C14","v":0},{"$f":"変更申請書類!E14","v":0}]
[null,"調査番号",null,{"$f":"変更申請書類!C14","v":0},null,{"$f":"変更申請書類!C33","v":0}]
[null,"申請者",null,"住所",{"$f":"変更申請書類!C11","v":0}]
[null,null,null,"氏名",{"$f":"変更申請書類!C12","v":0}]
[]
[]
[]
["件名",null,null,null,null,"数量","金額",null,null,"備考"]
["ます・取付管改築工事費",null,null,null,null,"１式",{"$f":"変更申請書類!C34","v":0}]
["舗装復旧費",null,null,null,null,"１式",{"$f":"変更申請書類!C35","v":0}]
[]
["計",null,null,null,null,null,{"$f":"SUM(G20:G21)","v":0}]
[]
["消費税",null,null,null,null,null,{"$f":"G23*0.1","v":0}]
[]
["合　計",null,null,null,null,null,{"$f":"G23+G25","v":0}]

{"sheet":"⑯検査願","index":28,"n_rows":46,"n_cols":30,"rows_kept":46,"cut":false,"hidden":false,"merged":[[29,3,29,7],[30,15,30,27],[45,29,47,31],[41,1,42,30],[44,9,44,18],[44,20,44,21],[44,22,44,23],[44,24,44,25],[44,26,44,28],[44,29,44,31],[45,9,45,18],[45,20,47,21],[45,22,47,23],[45,24,47,25],[45,26,47,28],[32,0,32,15],[25,3,25,7],[26,15,26,27],[5,0,5,11],[8,23,8,30],[10,23,10,30],[12,23,12,30],[23,0,23,8],[16,0,16,8],[16,24,16,25],[18,0,18,8],[20,0,20,8],[21,15,21,27],[16,21,16,23],[18,10,18,17],[18,18,18,27],[1,19,1,20],[3,25,3,30],[14,15,14,17],[16,10,16,20],[24,4,24,8]]}
[]
[null,null,null,null,null,"取 付 管 ・ 接 続 ま す ",null,null,null,null,null,null,null,null,null,null,null,null,null,{"$f":"完成検査書類!C15","v":"00:00:00"},null,"工 事 完 成 検 査 願 "]
[]
[null,null,null,null,null,null,null,null,null,null,null,null,null,null,null,null,null,null,null,null,null,null,null,null,null,{"$f":"完成検査書類!C16","v":"00:00:00"}]
[]
["神  戸  市  長   あて"]
[]
[]
["                                   ",null,null,null,null,null,null,null,null,null,null,null,null,null,null,null,null,null,null,null,"申請者",null,"住所",{"$f":"完成検査書類!C17","v":0}]
[]
[null,null,null,null,null,null,null,null,null,null,null,null,null,null,null,null,null,null,null,null,null,null,"氏名",{"$f":"完成検査書類!C18","v":0}]
[]
[]
[]
[null,"下記のとおり取付管・接続ます",null,null,null,null,null,null,null,null,null,null,null,null,null,{"$f":"完成検査書類!C15","v":"00:00:00"},null,null,"工事が完成したので検査をお願いします。"]
[]
["　1．承認番号：                                                             ",null,null,null,null,null,null,null,null,null,{"$f":"完成検査書類!E20","v":"00:00:00"},null,null,null,null,null,null,null,null,null,null,"　　　　　神建下管第",null,null,{"$f":"完成検査書類!K20","v":0},null,"号"]
[]
["　2．施工場所：                                                             ",null,null,null,null,null,null,null,null,null,{"$f":"完成検査書類!C22","v":0},null,null,null,null,null,null,null,{"$f":"完成検査書類!E22","v":0}]
[]
["　3．受  任  者：                                                             "]
[null,null,null,null,null,null,null,null,null,null,"業者名                                                       ",null,null,null,null,{"$f":"完成検査書類!C24","v":0}]
[]
["  4．施工業者："]
[]
[null,null,null,"（管工事）"]
[null,null,null,null,null,null,null,null,null,null,"業者名                                                       ",null,null,null,null,{"$f":"完成検査書類!C25","v":0}]
[]
[]
[null,null,null,"（舗装工事）"]
[null,null,null,null,null,null,null,null,null,null,"業者名                                                       ",null,null,null,null,{"$f":"完成検査書類!C26","v":0}]
[]
["　5．添付書類"]
[null,null,{"$f":"完成検査書類!C27","v":"□"},"取付管・接続ます（新設・改築）工事施工承認通知書の写し　　",null,null,null,null,null,null,null,null,null,null,null,null,null,null,null,null,null,{"$f":"完成検査書類!M27","v":"□"},"位置図"]
[null,null,{"$f":"完成検査書類!O27","v":"□"},"台帳修正用図面(下水道台帳図上に記入)",null,null,null,null,null,null,null,null,null,null,null,null,null,null,{"$f":"完成検査書類!C28","v":"□"},"施工通知書の回答の写し　",null,null,null,null,{"$f":"完成検査書類!I28","v":"□"},"工事写真　"]
[null,null,{"$f":"完成検査書類!K28","v":"□"},"道路掘削跡舗装復旧検査願書類一式（公道掘削を伴う場合）",null,null,null,null,null,null,null,null,null,null,null,null,null,null,null,null,null,{"$f":"完成検査書類!C29","v":"□"},"取付管・接続ますの資産表(新設の場合)"]
[null,null,{"$f":"完成検査書類!K29","v":"□"},"工事内訳書（改築の場合）"]
[]
[null,null,"※工事完成後、速やかに本紙を提出してください。"]
[null,null,"※記入漏れや添付資料が不足している場合は、書類を受理できないことがあります。"]
[]
[null,"　上記の検査願により、提出された関係書類に基づき完成検査を行った結果、合格と認め、工事完成検査合格通知書により通知してよろしいか。（伺）"]
["　合格と認められるので完成検査合格通知書により通知してよろしいか（伺）。"]
[]
[null,null,null,null,null,null,null,null,null,"神建下管第　　　　　　　　号",null,null,null,null,null,null,null,null,null,null,"課長",null,"担当課長",null,"担当係長",null,"係",null,null,"係"]
[null,null,null,null,null,null,null,null,null,"令和　年　　月　　日"]

{"sheet":"⑯’検査願(副)","index":29,"n_rows":31,"n_cols":27,"rows_kept":31,"cut":false,"hidden":false,"merged":[[29,3,29,7],[30,15,30,27],[32,0,32,15],[20,0,20,8],[21,15,21,27],[23,0,23,8],[24,4,24,8],[25,3,25,7],[26,15,26,27],[1,17,1,19],[18,0,18,8],[18,10,18,17],[18,18,18,27],[3,25,3,30],[5,0,5,11],[8,23,8,30],[10,23,10,30],[12,23,12,30],[14,15,14,17],[16,0,16,8],[16,10,16,20],[16,21,16,23],[16,24,16,25]]}
[]
[null,null,null,"取 付 管 ・ 接 続 ま す ",null,null,null,null,null,null,null,null,null,null,null,null,null,{"$f":"完成検査書類!C15","v":"00:00:00"},null,null,"工 事 完 成 検 査 願 （副）"]
[]
[null,null,null,null,null,null,null,null,null,null,null,null,null,null,null,null,null,null,null,null,null,null,null,null,null,{"$f":"完成検査書類!C16","v":"00:00:00"}]
[]
["神  戸  市  長   あて"]
[]
[]
["                                   ",null,null,null,null,null,null,null,null,null,null,null,null,null,null,null,null,null,null,null,"申請者",null,"住所",{"$f":"完成検査書類!C17","v":0}]
[]
[null,null,null,null,null,null,null,null,null,null,null,null,null,null,null,null,null,null,null,null,null,null,"氏名",{"$f":"完成検査書類!C18","v":0}]
[]
[]
[]
[null,"下記のとおり取付管・接続ます",null,null,null,null,null,null,null,null,null,null,null,null,null,{"$f":"完成検査書類!C15","v":"00:00:00"},null,null,"工事が完成したので検査をお願いします。"]
[]
["　1．承認番号：                                                             ",null,null,null,null,null,null,null,null,null,{"$f":"完成検査書類!E20","v":"00:00:00"},null,null,null,null,null,null,null,null,null,null,"　　　　　神建下管第",null,null,{"$f":"完成検査書類!K20","v":0},null,"号"]
[]
["　2．施工場所：                                                             ",null,null,null,null,null,null,null,null,null,{"$f":"完成検査書類!C22","v":0},null,null,null,null,null,null,null,{"$f":"完成検査書類!E22","v":0}]
[]
["　3．受  任  者：                                                             "]
[null,null,null,null,null,null,null,null,null,null,"業者名                                                       ",null,null,null,null,{"$f":"完成検査書類!C24","v":0}]
[]
["  4．施工業者："]
[]
[null,null,null,"（管工事）"]
[null,null,null,null,null,null,null,null,null,null,"業者名                                                       ",null,null,null,null,{"$f":"完成検査書類!C25","v":0}]
[]
[]
[null,null,null,"（舗装工事）"]
[null,null,null,null,null,null,null,null,null,null,"業者名                                                       ",null,null,null,null,{"$f":"完成検査書類!C26","v":0}]

{"sheet":"⑰資産表","index":30,"n_rows":24,"n_cols":8,"rows_kept":24,"cut":false,"hidden":false,"merged":[[23,5,24,5],[23,1,24,4],[20,0,20,1],[20,4,20,5],[20,6,20,7],[21,1,21,3],[22,1,22,5],[22,6,22,7],[0,0,1,7],[3,0,3,7],[19,0,19,1],[14,2,14,3],[14,5,14,6],[15,2,15,3],[15,5,15,6],[16,2,16,3],[16,5,16,6],[18,0,18,7]]}
["取付管・接続ますの資産表（無償寄付）"]
[]
[]
["取　　　　付　　　　管"]
[1,"取付管径",{"$f":"完成検査書類!E30","v":0},"ｍｍ","延　　　長",{"$f":"IF(完成検査書類!K30=0,\"\",完成検査書類!K30)","v":""},"ｍ","少数第２止め"]
[2,"取付管径",{"$f":"完成検査書類!E31","v":0},"ｍｍ","延　　　長",{"$f":"IF(完成検査書類!K31=0,\"\",完成検査書類!K31)","v":""},"ｍ","少数第２止め"]
[3,"取付管径",{"$f":"完成検査書類!E32","v":0},"ｍｍ","延　　　長",{"$f":"IF(完成検査書類!K32=0,\"\",完成検査書類!K32)","v":""},"ｍ","少数第２止め"]
[4,"取付管径",{"$f":"完成検査書類!E33","v":0},"ｍｍ","延　　　長",{"$f":"IF(完成検査書類!K33=0,\"\",完成検査書類!K33)","v":""},"ｍ","少数第２止め"]
[5,"取付管径",{"$f":"完成検査書類!E34","v":0},"ｍｍ","延　　　長",{"$f":"IF(完成検査書類!K34=0,\"\",完成検査書類!K34)","v":""},"ｍ","少数第２止め"]
[6,"取付管径",null,"ｍｍ","延　　　長",null,"ｍ","少数第２止め"]
[7,"取付管径",null,"ｍｍ","延　　　長",null,"ｍ","少数第２止め"]
[8,"取付管径",null,"ｍｍ","延　　　長",null,"ｍ","少数第２止め"]
[9,"取付管径",null,"ｍｍ","延　　　長",null,"ｍ","少数第２止め"]
[10,"取付管径",null,"ｍｍ","延　　　長",null,"ｍ","少数第２止め"]
[]
[]
[]
[]
["接　　続　　ま　　す"]
["種　　　類",null,"宅地ます","公道ます","その他",{"$f":"完成検査書類!I35","v":0},"その他",{"$f":"完成検査書類!M35","v":0}]
["　　個　　　数　　",null,{"$f":"完成検査書類!E35","v":1},{"$f":"完成検査書類!G35","v":0},{"$f":"完成検査書類!K35","v":0},null,{"$f":"完成検査書類!O35","v":0}]
[null,"概算工事費は、税込みとする"]
[null,"概算工事費（千円以下は、切捨てで丸める）",null,null,null,null,"※舗装費も含む"]
[null,{"$f":"完成検査書類!C36","v":0},null,null,null,"円"]

{"sheet":"⑱内訳書","index":31,"n_rows":27,"n_cols":10,"rows_kept":27,"cut":false,"hidden":false,"merged":[[24,0,24,4],[24,6,24,8],[25,0,25,4],[25,6,25,8],[26,0,26,4],[26,6,26,8],[21,0,21,4],[21,6,21,8],[22,0,22,4],[22,6,22,8],[23,0,23,4],[23,6,23,8],[18,0,18,4],[18,6,18,8],[19,0,19,4],[19,6,19,8],[20,0,20,4],[20,6,20,8],[11,1,11,2],[12,1,12,2],[12,5,12,9],[13,1,15,2],[13,4,13,9],[14,3,15,3],[14,4,15,9],[11,5,11,9],[12,3,12,4],[0,0,0,9],[1,0,1,9],[5,5,5,9],[8,0,8,1],[8,2,8,8],[6,5,6,6],[6,7,6,9]]}
["工　事　内　訳　書"]
[{"$f":"完成検査書類!C16","v":"00:00:00"}]
[]
["神戸市長 あて"]
[]
[null,null,null,null,"住所",{"$f":"完成検査書類!C37","v":0}]
[null,null,null,null,"氏名",{"$f":"完成検査書類!C38","v":0},null,{"$f":"完成検査書類!C39","v":0}]
["工事の内訳はつぎのとおりです。",null,null,null,{"$f":"IF(完成検査書類!K19=\"\",\"インボイス（　未登録　）\",\"インボイス（　登録番号：　\"&完成検査書類!K19&\"　）\")","v":"インボイス（　未登録　）"}]
["工事金額",null,{"$f":"G27","v":0},null,null,null,null,null,null,"円"]
[]
[]
[null,"工事場所",null,"神戸市",{"$f":"完成検査書類!C22","v":0},{"$f":"完成検査書類!E22","v":0}]
[null,"管理番号",null,{"$f":"完成検査書類!C22","v":0},null,{"$f":"完成検査書類!C40","v":0}]
[null,"申請者",null,"住所",{"$f":"完成検査書類!C17","v":0}]
[null,null,null,"氏名",{"$f":"完成検査書類!C18","v":0}]
[]
[]
[]
["件名",null,null,null,null,"数量","金額",null,null,"備考"]
["ます・取付管改築工事費",null,null,null,null,"１式",{"$f":"完成検査書類!C41","v":0}]
["舗装復旧費",null,null,null,null,"１式",{"$f":"完成検査書類!C42","v":0}]
[]
["計",null,null,null,null,null,{"$f":"SUM(G20:G21)","v":0}]
[]
[{"$f":"\"消費税（\"&完成検査書類!N43&\"%）\"","v":"消費税（10%）"},null,null,null,null,null,{"$f":"G23*0.1","v":0}]
[]
["合　計",null,null,null,null,null,{"$f":"G23+G25","v":0}]

{"sheet":"⑲掘削工事検査願","index":32,"n_rows":40,"n_cols":48,"rows_kept":40,"cut":false,"hidden":false,"merged":[[25,9,25,11],[26,8,30,20],[38,6,38,9],[39,27,39,30],[39,31,39,34],[39,35,39,38],[39,39,39,42],[39,3,39,6],[39,7,39,10],[39,11,39,14],[39,15,39,18],[39,19,39,22],[39,23,39,26],[31,1,31,20],[32,1,38,1],[32,2,32,10],[32,11,32,12],[32,13,32,20],[33,3,33,10],[33,11,33,12],[33,13,33,20],[34,3,34,10],[34,11,34,12],[37,3,37,10],[37,11,37,12],[37,13,37,20],[38,11,38,12],[38,13,38,20],[34,13,34,20],[35,3,35,10],[35,11,35,12],[35,13,35,20],[36,3,36,10],[36,11,36,12],[36,13,36,20],[25,1,25,7],[25,12,25,20],[26,1,30,7],[23,3,23,6],[23,7,23,9],[23,11,23,13],[23,15,23,20],[24,3,24,6],[24,7,24,9],[24,11,24,13],[24,15,24,20],[13,1,24,2],[13,3,14,6],[13,7,13,14],[13,15,14,20],[14,7,14,10],[14,11,14,14],[15,3,15,4],[15,5,15,6],[18,11,18,13],[18,15,18,20],[21,3,21,6],[21,7,21,9],[21,11,21,13],[21,15,21,20],[22,3,22,6],[22,7,22,9],[22,11,22,13],[22,15,22,20],[19,3,19,4],[19,5,19,6],[19,7,19,9],[19,11,19,13],[19,15,19,20],[20,3,20,6],[20,7,20,9],[20,11,20,13],[20,15,20,20],[18,3,18,4],[18,5,18,6],[18,7,18,9],[15,7,15,9],[15,11,15,13],[15,15,15,20],[16,3,16,4],[16,5,16,6],[16,7,16,9],[16,11,16,13],[16,15,16,20],[17,3,17,4],[17,5,17,6],[17,7,17,9],[17,11,17,13],[17,15,17,20],[10,6,10,12],[10,13,10,17],[10,18,10,20],[11,6,11,12],[11,13,11,17],[11,18,11,20],[7,1,7,4],[7,9,7,20],[8,1,12,4],[8,6,8,11],[8,12,8,17],[8,18,8,20],[9,6,9,12],[9,13,9,17],[9,18,9,20],[12,6,12,12],[12,13,12,17],[12,18,12,20],[7,5,7,8],[5,1,5,4],[5,5,5,6],[5,7,5,8],[6,1,6,4],[1,1,1,44],[2,1,2,44],[3,1,3,20],[4,1,4,4],[4,8,4,10],[4,12,4,13],[4,14,4,20],[4,21,4,44],[5,9,5,20],[6,5,6,11],[6,12,6,13],[6,14,6,20]]}
[]
[]
[null,"道路掘削跡復旧工事検査願作成様式兼舗装面積計算書"]
[]
[null,"掘削許可番号",null,null,null,"道占",{"$f":"舗装検査書類!E9","v":"00:00:00"},"第",{"$f":"舗装検査書類!H9","v":0},null,null,"号",null,null,null,null,null,null,null,null,null,"舗装復旧範囲図面・面積計算書",null,null,null,null,null,null,null,null,null,null,null,null,null,null,null,null,null,null,null,null,null,null,null,null,null,"道占東部第"]
[null,"工事場所",null,null,null,"神戸市",null,{"$f":"完成検査書類!C22","v":0},null,{"$f":"完成検査書類!E22","v":0},null,null,null,null,null,null,null,null,null,null,null,null,null,null,null,null,null,null,null,null,null,null,null,null,null,null,null,null,null,null,null,null,null,null,null,null,null,"道占中部第"]
[null,"工事期間",null,null,null,{"$f":"舗装検査書類!E10","v":"00:00:00"},null,null,null,null,null,null,"～",null,{"$f":"舗装検査書類!M10","v":"00:00:00"},null,null,null,null,null,null,null,null,null,null,null,null,null,null,null,null,null,null,null,null,null,null,null,null,null,null,null,null,null,null,null,null,"道占西部第"]
[null,"管理番号",null,null,null,{"$f":"舗装検査書類!C11","v":0},null,null,null,{"$f":"舗装検査書類!E11","v":0},null,null,null,null,null,null,null,null,null,null,null,null,null,null,null,null,null,null,null,null,null,null,null,null,null,null,null,null,null,null,null,null,null,null,null,null,null,"道占垂水第"]
[null,"舗装復旧業者",null,null,null,{"$f":"舗装検査書類!C13","v":0},"申請者復旧（復旧業者名）（",null,null,null,null,null,{"$f":"舗装検査書類!G13","v":0},null,null,null,null,null,"）",null,null,null,null,null,null,null,null,null,null,null,null,null,null,null,null,null,null,null,null,null,null,null,null,null,null,null,null,"道占西第"]
[null,null,null,null,null,{"$f":"舗装検査書類!C14","v":0},"他社復旧（ガス）（復旧業者名）（",null,null,null,null,null,null,{"$f":"舗装検査書類!G14","v":0},null,null,null,null,"）",null,null,null,null,null,null,null,null,null,null,null,null,null,null,null,null,null,null,null,null,null,null,null,null,null,null,null,null,"道占北第"]
[null,null,null,null,null,{"$f":"舗装検査書類!C15","v":0},"他社復旧（水道）（復旧業者名）（",null,null,null,null,null,null,{"$f":"舗装検査書類!G15","v":0},null,null,null,null,"）"]
[null,null,null,null,null,{"$f":"舗装検査書類!C16","v":0},"他社復旧（建築２４条）（復旧業者名）（",null,null,null,null,null,null,{"$f":"舗装検査書類!G16","v":0},null,null,null,null,"）"]
[null,null,null,null,null,{"$f":"舗装検査書類!C17","v":0},"他社復旧（その他）（復旧業者名）（",null,null,null,null,null,null,{"$f":"舗装検査書類!G17","v":0},null,null,null,null,"）"]
[null,"舗装復旧面積（舗装・街渠・白線）",null,"工種区分",null,null,null,"復旧面積（合計）",null,null,null,null,null,null,null,"適用"]
[null,null,null,null,null,null,null,"実掘部",null,null,null,"影響部"]
[null,null,null,{"$f":"舗装検査書類!C20","v":0},null,"号工",null,{"$f":"IF(舗装検査書類!H20=0,\"\",舗装検査書類!H20)","v":""},null,null,"㎡",{"$f":"IF(舗装検査書類!J20=0,\"\",舗装検査書類!J20)","v":""},null,null,"㎡",{"$f":"舗装検査書類!L20","v":0}]
[null,null,null,{"$f":"舗装検査書類!C21","v":0},null,"号工",null,{"$f":"IF(舗装検査書類!H21=0,\"\",舗装検査書類!H21)","v":""},null,null,"㎡",{"$f":"IF(舗装検査書類!J21=0,\"\",舗装検査書類!J21)","v":""},null,null,"㎡",{"$f":"舗装検査書類!L21","v":0}]
[null,null,null,{"$f":"舗装検査書類!C22","v":0},null,"号工",null,{"$f":"IF(舗装検査書類!H22=0,\"\",舗装検査書類!H22)","v":""},null,null,"㎡",{"$f":"IF(舗装検査書類!J22=0,\"\",舗装検査書類!J22)","v":""},null,null,"㎡",{"$f":"舗装検査書類!L22","v":0}]
[null,null,null,{"$f":"舗装検査書類!C23","v":0},null,"号工",null,{"$f":"IF(舗装検査書類!H23=0,\"\",舗装検査書類!H23)","v":""},null,null,"㎡",{"$f":"IF(舗装検査書類!J23=0,\"\",舗装検査書類!J23)","v":""},null,null,"㎡",{"$f":"舗装検査書類!L23","v":0}]
[null,null,null,{"$f":"舗装検査書類!C24","v":0},null,"号工",null,{"$f":"IF(舗装検査書類!H24=0,\"\",舗装検査書類!H24)","v":""},null,null,"㎡",{"$f":"IF(舗装検査書類!J24=0,\"\",舗装検査書類!J24)","v":""},null,null,"㎡",{"$f":"舗装検査書類!L24","v":0}]
[]
[null,null,null,"白線",null,null,null,{"$f":"IF(舗装検査書類!H25=0,\"\",舗装検査書類!H25)","v":""},null,null,"ｍ"]
[]
[]
[]
[null,"舗装復旧工程写真の有無",null,null,null,null,null,null,null,{"$f":"舗装検査書類!C26","v":0}]
[null,"無しの場合の理由　　　",null,null,null,null,null,null,{"$f":"舗装検査書類!C27","v":0}]
[]
[]
[]
[]
[null,"添付資料"]
[null,"添付資料","添付資料名",null,null,null,null,null,null,null,null,"部数",null,"備考"]
[null,null,{"$f":"舗装検査書類!C28","v":0},"検査願作成様式兼面積計算書",null,null,null,null,null,null,null,"１部",null,"※本紙"]
[null,null,{"$f":"舗装検査書類!I28","v":0},"位置図（住宅地図）",null,null,null,null,null,null,null,"１部"]
[null,null,{"$f":"舗装検査書類!K28","v":0},"舗装復旧面積集計表",null,null,null,null,null,null,null,"１部",null,"※工事箇所が複数の場合のみ"]
[null,null,{"$f":"舗装検査書類!C29","v":0},"道路掘削許可証（副）の写し",null,null,null,null,null,null,null,"１部"]
[null,null,{"$f":"舗装検査書類!I29","v":0},"工事写真（管工事・舗装）",null,null,null,null,null,null,null,"１部"]
[null,null,{"$f":"舗装検査書類!O29","v":0},"その他（",null,null,{"$f":"舗装検査書類!Q29","v":0},null,null,null,"）"]
[null,null,null,10,null,null,null,9,null,null,null,8,null,null,null,7,null,null,null,6,null,null,null,5,null,null,null,4,null,null,null,3,null,null,null,2,null,null,null,1]

{"sheet":"(21)取下","index":33,"n_rows":35,"n_cols":9,"rows_kept":35,"cut":false,"hidden":false,"merged":[[1,0,1,10],[15,0,15,10],[3,0,3,10],[19,4,19,6],[22,2,22,4],[22,5,22,6],[4,0,4,10],[12,0,12,10],[28,2,32,10],[9,7,9,10],[8,7,8,10],[8,4,8,5],[34,0,34,10],[25,4,25,6]]}
[]
["（様式５－２）"]
[]
["取付管・接続ます承認工事申請取下げ届"]
[{"$f":"取下書類!C7","v":"00:00:00"}]
[]
[null,"神戸市長あて"]
[]
[null,null,null,null,"申請者・受任者",null,"住所",{"$f":"取下書類!C8","v":0}]
[null,null,null,null,null,null,"氏名",{"$f":"取下書類!C9","v":0}]
[]
[]
["　取付管・接続ます承認工事について、下記のとおり承認の取下げをお願いしま"]
[null,"す。"]
[]
["記"]
[]
[]
[null,"１．管理番号"]
["　　　　　",null,{"$f":"取下書類!C13","v":0},"―",{"$f":"取下書類!C10","v":0}]
[]
[null,"２．承認番号"]
[null,null,{"$f":"取下書類!E11","v":"00:00:00"},null,null,"神建下管第",null,{"$f":"取下書類!K11","v":0},"号"]
[]
[null,"３．工事場所"]
[null,null,"神戸市",{"$f":"取下書類!C13","v":0},{"$f":"取下書類!E13","v":0}]
[]
[null,"４．取下げ理由　　"]
["　　　　　　　　　　　　　　　　　　　　　　　　　　　　　　　　　　",null,{"$f":"取下書類!C14","v":0}]
["　　　　　　　　　　　　　　　　　　　　　　　　　　　　　　　　　　"]
["　　　　　　　　　　　　　　　　　　　　　　　　　　　　　　　　　　"]
["　　　　　　　　　　　　　　　　　　　　　　　　　　　　　　　　　　"]
["　　　　　　　　　　　　　　　　　　　　　　　　　　　　　　　　　　"]
[]
["以上"]

{"sheet":"→以降は令和４年度以前様式","index":34,"n_rows":0,"n_cols":0,"rows_kept":0,"cut":false,"hidden":false,"merged":[]}

{"sheet":"請求書類","index":35,"n_rows":51,"n_cols":20,"rows_kept":51,"cut":false,"hidden":false,"merged":[[8,0,11,0],[7,2,7,22],[8,2,8,22],[9,2,9,22],[11,2,11,22],[10,2,10,22],[2,5,2,6],[18,16,19,16],[18,14,19,15],[12,2,12,3],[12,10,12,11],[12,15,12,22],[13,11,13,22],[15,4,15,22],[18,2,18,7],[16,4,16,22],[18,19,19,19],[18,20,19,20],[17,2,17,22],[19,4,20,4],[15,2,15,3],[16,2,16,3],[18,28,19,28],[20,8,22,10],[21,11,22,22],[18,12,18,13],[19,12,19,13],[20,12,20,22],[18,8,19,10],[18,22,19,22],[18,23,19,23],[18,24,19,24],[18,25,19,25],[18,26,19,26],[18,18,19,18],[18,21,19,21],[18,27,19,27],[23,6,23,11],[24,4,24,5],[14,11,14,17],[14,18,14,22],[12,0,22,0],[19,2,20,3],[19,7,20,7],[19,5,20,6],[18,17,19,17],[13,1,14,1],[21,2,21,3],[22,2,22,4],[18,1,22,1],[15,1,16,1],[12,4,12,9],[12,12,12,14]]}
["給付金請求書類作成シート"]
["シート入力後、以下の書類を提出してください"]
[null,"給付金請求書",null,null,null,"シート⑳"]
[null,"完成検査合格通知書の写し",null,null,null,"別途添付"]
[null,"給付金交付決定通知書",null,null,null,"別途添付"]
[]
[null,"白色部分に入力してください。入力欄が□の場合、該当する時は■を選択してください。"]
[null,"提出日（和暦）※請求日は指定されています"]
["申請者","住所",{"$f":"施工承認申請書類!C28","v":0}]
[null,"氏名（会社名）",{"$f":"施工承認申請書類!C26","v":0}]
[null,"氏名（代表者）",{"$f":"施工承認申請書類!C27","v":0}]
[null,"電話番号",{"$f":"施工承認申請書類!C29","v":0}]
[null,"完成合格通知日・番号","承認日",null,null,null,null,null,null,null,"神建下管",null,null,null,null,"号　（工事完成検査合格書の右上に記載）"]
[null,"請求額",null,null,"百万",null,null,"千",null,null,"円"]
[null,null,null,null,null,1,4,3,0,0,0,"（右詰めで記入し、金額の左側に\"\\\"をつける）",null,null,null,null,null,null,{"$f":"D15&E15&F15&G15&H15&I15&J15&K15","v":"143000"}]
[null,"施工場所","区（選択）",null,"区以降（入力）"]
[null,null,null,null,{"$f":"施工承認申請書類!E23","v":0}]
[null,"債権者番号"]
[null,"振込口座情報（債権者番号記入済みの場合は不要）","振込先金融機関",null,null,null,null,null,"預金種目",null,null,"１　普通","２　当座",null,"口座番号"]
[null,null,null,null,"銀行",null,null,"支店",null,null,null,"３　その他"]
[null,null,null,null,null,null,null,null,"口座名義",null,null,"フリガナ"]
[null,null,"金融機関コード"]
[null,null,"支店コード"]
[null,"インボイス記載事項","インボイス登録番号"]
[null,null,"消費税率",null,10]
[]
[]
[]
[]
[]
[]
[]
[]
[]
[]
[]
[]
[]
[]
[]
[null,null,null,null,null,null,null,null,null,null,null,null,null,null,null,null,null,null,"東灘区","銀行"]
[null,null,null,null,null,null,null,null,null,null,null,null,null,null,null,null,null,null,"灘区","金庫"]
[null,null,null,null,null,null,null,null,null,null,null,null,null,null,null,null,null,null,"中央区"]
[null,null,null,null,null,null,null,null,null,null,null,null,null,null,null,null,null,null,"兵庫区","１　普通"]
[null,null,null,null,null,null,null,null,null,null,null,null,null,null,null,null,null,null,"長田区","①　普通"]
[null,null,null,null,null,null,null,null,null,null,null,null,null,null,null,null,null,null,"須磨区"]
[null,null,null,null,null,null,null,null,null,null,null,null,null,null,null,null,null,null,"垂水区","２　当座"]
[null,null,null,null,null,null,null,null,null,null,null,null,null,null,null,null,null,null,"西区","②　当座"]
[null,null,null,null,null,null,null,null,null,null,null,null,null,null,null,null,null,null,"北区"]
[null,null,null,null,null,null,null,null,null,null,null,null,null,null,null,null,null,null,null,"３　その他"]
[null,null,null,null,null,null,null,null,null,null,null,null,null,null,null,null,null,null,null,"③　その他"]

{"sheet":"⑳請求書 ","index":36,"n_rows":37,"n_cols":29,"rows_kept":37,"cut":false,"hidden":false,"merged":[[29,1,29,3],[29,11,30,28],[30,1,30,4],[26,26,27,26],[26,27,27,27],[26,28,27,28],[27,6,28,7],[28,8,30,10],[27,15,27,17],[27,2,28,2],[27,4,28,5],[27,3,28,3],[28,14,28,28],[21,1,21,28],[26,1,26,7],[26,8,27,10],[26,19,27,21],[26,22,27,22],[26,23,27,23],[26,24,27,24],[26,25,27,25],[25,22,25,28],[19,1,19,28],[2,1,2,28],[5,12,5,13],[17,2,18,7],[5,16,5,28],[6,16,6,23],[7,16,7,23],[8,16,8,23],[15,2,15,5],[15,9,15,11],[3,2,3,28]]}
[]
[]
[null,"給付金請求書"]
[null,null,{"$f":"請求書類!C8","v":"00:00:00"}]
[null,null,"神戸市長　あて"]
[null,null,null,null,null,null,null,null,null,null,null,null,"申請者",null,"住所",null,{"$f":"請求書類!C9","v":0}]
[null,null,null,null,null,null,null,null,null,null,null,null,null,null,null,null,{"$f":"請求書類!C10","v":0}]
[null,null,null,null,null,null,null,null,null,null,null,null,null,null,"氏名",null,{"$f":"請求書類!C11","v":0}]
[null,null,null,null,null,null,null,null,null,null,null,null,null,null,"電話",null,{"$f":"請求書類!C12","v":0}]
[null,null,null,null,null,null,null,null,null,null,null,null,null,null,{"$f":"IF(請求書類!G24=\"\",\"インボイス（未登録）\",\"インボイス（　登録番号：　\"&請求書類!G24&\"　）\")","v":"インボイス（未登録）"}]
[]
[null,null,"公共下水道（取付管・接続ます）改善への支援事業実施要綱第８条に基づき給付金を"]
[null," 請求します。"]
[]
[null,null,"取付管・接続ます改築工事完成検査合格通知"]
[null,null,{"$f":"請求書類!E13","v":"00:00:00"},null,null,null,null,null,"第",{"$f":"請求書類!M13","v":0},null,null,"号"]
[]
[null,null,"請　求　額",null,null,null,null,null,null,null,"百万",null,null,"千",null,null,"円"]
[null,null,null,null,null,null,null,null,{"$f":"IF(請求書類!C15=\"\",\"\",請求書類!C15)","v":""},{"$f":"IF(請求書類!D15=\"\",\"\",請求書類!D15)","v":""},{"$f":"IF(請求書類!E15=\"\",\"\",請求書類!E15)","v":""},{"$f":"IF(請求書類!F15=\"\",\"\",請求書類!F15)","v":1},{"$f":"IF(請求書類!G15=\"\",\"\",請求書類!G15)","v":4},{"$f":"IF(請求書類!H15=\"\",\"\",請求書類!H15)","v":3},{"$f":"IF(請求書類!I15=\"\",\"\",請求書類!I15)","v":0},{"$f":"IF(請求書類!J15=\"\",\"\",請求書類!J15)","v":0},{"$f":"IF(請求書類!K15=\"\",\"\",請求書類!K15)","v":0}]
[null,"　　内　　訳"]
[null,"施行場所：",null,null,{"$f":"請求書類!C17","v":0},null,null,{"$f":"請求書類!E17","v":0}]
[null,"取付管・接続ます改築工事費　１式"]
[null,{"$f":"IF(請求書類!G24=\"\",\"\",\"[\"&請求書類!E25&\"%対象\"&請求書類!S15&\"円　内税\"&請求書類!S15/((100+請求書類!E25)/100)*請求書類!E25/100&\"円]\")","v":""}]
[]
[null,null,null,"請求代金は、下記の預金口座に口座振込の方法により決済してください。"]
[null,null,null,"ただし、下記の事項を承認いたします。",null,null,null,null,null,null,null,null,null,null,null,null,null,null,null,null,null,null,{"$f":"IF(請求書類!C18=\"\",\"\",請求書類!C18)","v":""}]
[null,"振込先金融機関",null,null,null,null,null,null,"預金種目",null,null,{"$f":"請求書類!L19","v":"１　普通"},null,null,{"$f":"請求書類!M19","v":"２　当座"},null,null,null,null,"口座番号",null,null,{"$f":"IF(請求書類!Q19=\"\",\"\",請求書類!Q19)","v":""},{"$f":"IF(請求書類!R19=\"\",\"\",請求書類!R19)","v":""},{"$f":"IF(請求書類!S19=\"\",\"\",請求書類!S19)","v":""},{"$f":"IF(請求書類!T19=\"\",\"\",請求書類!T19)","v":""},{"$f":"IF(請求書類!U19=\"\",\"\",請求書類!U19)","v":""},{"$f":"IF(請求書類!V19=\"\",\"\",請求書類!V19)","v":""},{"$f":"IF(請求書類!W19=\"\",\"\",請求書類!W19)","v":""}]
[null,null,{"$f":"請求書類!C20","v":0},{"$f":"請求書類!E20","v":"銀行"},{"$f":"請求書類!F20","v":0},null,"支店",null,null,null,null,{"$f":"請求書類!L20","v":"３　その他"},"その他（",null,null,{"$f":"請求書類!M20","v":0},null,null,"）"]
[null,null,null,null,null,null,null,null,"口座名義",null,null,"フリガナ",null,null,{"$f":"請求書類!M21","v":0}]
[null,"金融機関コード",null,null,{"$f":"IF(請求書類!E22=\"\",\"\",請求書類!E22)","v":""},{"$f":"IF(請求書類!F22=\"\",\"\",請求書類!F22)","v":""},{"$f":"IF(請求書類!G22=\"\",\"\",請求書類!G22)","v":""},{"$f":"IF(請求書類!H22=\"\",\"\",請求書類!H22)","v":""},null,null,null,{"$f":"請求書類!L22","v":0}]
[null,"支店コード",null,null,null,{"$f":"IF(請求書類!F23=\"\",\"\",請求書類!F23)","v":""},{"$f":"請求書類!G23","v":0},{"$f":"IF(請求書類!H23=\"\",\"\",請求書類!H23)","v":""}]
[null,null,"１　貴市の口座振込手続き完了をもって当方は受領したものと認め、あらためて領収証は"]
[null,null,"　発行いたしません。"]
[null,null,"２　上記について万一事故が生じた場合は、当方において一切の責任を負い貴市にはご迷"]
[null,null,"　惑をおかけいたしません。"]
[null,null,"３　上記の請求代金に対し、振込手数料を必要とする場合は、当方が受領する金額から差引"]
[null,null,"　きされても異議ありません。"]